Body Name,ONS SNAC ID,Pay Date,Transaction No,Amount �,Supplier Name,Company Registration No,Department,Account Name,CIPFA Service Reporting
Swale Borough Council,29UM,04/05/2016,1141148,3896.10,ACORN MAINTENANCE SERVICES,3546898                  ,HOUSING SERVICES,Housing Renovation Grants,Not used in this Structure
Swale Borough Council,29UM,04/05/2016,1140686,500.00,ALL SAINTS CHURCH,                         ,COMMUNITY SAFETY,Grants & Subscriptions,Central Services to the Public
Swale Borough Council,29UM,04/05/2016,1140815,4446.18,BEMROSE MOBILE LTD,                         ,CAR PARKS,Fees - Licence,Highway and Transport Services
Swale Borough Council,29UM,04/05/2016,1140877,500.00,BOUGHTON UNDER BLEAN BOWLING CLUB,                         ,COMMUNITY SAFETY,Grants & Subscriptions,Central Services to the Public
Swale Borough Council,29UM,04/05/2016,1141038,2192.89,CANON UK LTD,1264300                  ,PROPERTY SERVICES,Equipment Maintenance,Internal Trading Cost Centres
Swale Borough Council,29UM,04/05/2016,1140641,311.55,CHILDREN AND FAMILIES LTD,                         ,COMMUNITY SAFETY,Fees And Services,Planning and Development Services
Swale Borough Council,29UM,04/05/2016,1140642,7340.17,CHILDREN AND FAMILIES LTD,                         ,COMMUNITY SAFETY,Fees And Services,Planning and Development Services
Swale Borough Council,29UM,04/05/2016,1140876,493.43,COMENSURA LTD,04085767                 ,HUMAN RESOURCES,Agency/Contract Staff,Internal Trading Cost Centres
Swale Borough Council,29UM,04/05/2016,1140876,321.30,COMENSURA LTD,04085767                 ,DEMOCRATIC & ELECTORAL SERVICES,Agency/Contract Staff,Internal Trading Cost Centres
Swale Borough Council,29UM,04/05/2016,1140876,15.00,COMENSURA LTD,04085767                 ,DEMOCRATIC & ELECTORAL SERVICES,Agency/Contract Staff,Internal Trading Cost Centres
Swale Borough Council,29UM,04/05/2016,1141075,3737.32,COMMERCIAL SERVICES TRADING LTD,5858178                  ,SERVICE DELIVERY,Hire & Leases,Cultural and Related Services
Swale Borough Council,29UM,04/05/2016,1141076,3815.56,COMMERCIAL SERVICES TRADING LTD,5858178                  ,SERVICE DELIVERY,Hire & Leases,Cultural and Related Services
Swale Borough Council,29UM,04/05/2016,1140936,323.10,CONTRACT SECURITY SERVICES,2461362                  ,EXCHEQUER,Cash Security,Internal Trading Cost Centres
Swale Borough Council,29UM,04/05/2016,1140936,3653.64,CONTRACT SECURITY SERVICES,2461362                  ,CAR PARKS,Cash Security,Highway and Transport Services
Swale Borough Council,29UM,04/05/2016,1140084,-299.33,EDF ENERGY,2228297                  ,CONTRACT & PROCUREMENT,Electricity,Environmental and Regulatory Services
Swale Borough Council,29UM,04/05/2016,1140842,631.70,EDF ENERGY,2228297                  ,LEISURE & OPEN SPACES,Electricity,Cultural and Related Services
Swale Borough Council,29UM,04/05/2016,1141101,323.94,GALTEC SOLUTIONS LTD,5209602                  ,REVENUE SERVICES,Fees And Services,Housing
Swale Borough Council,29UM,04/05/2016,1141102,425.00,GALTEC SOLUTIONS LTD,5209602                  ,ICT,Payments in Year,Ledger/Suspense Codes
Swale Borough Council,29UM,04/05/2016,1140965,3500.00,HMCTS,                         ,CAR PARKS,Parking Adjudication Fees,Highway and Transport Services
Swale Borough Council,29UM,04/05/2016,1140965,3500.00,HMCTS,                         ,CAR PARKS,Parking Adjudication Fees,Highway and Transport Services
Swale Borough Council,29UM,04/05/2016,1141040,2000.00,HOBBISTER FARMS,                         ,LEISURE & OPEN SPACES,Maintenance - Grounds,Cultural and Related Services
Swale Borough Council,29UM,04/05/2016,1141147,6465.00,HUBBARD & HOUGHTON CONSTRUCTION LTD,                         ,HOUSING SERVICES,Housing Renovation Grants,Not used in this Structure
Swale Borough Council,29UM,04/05/2016,1140963,300.00,INFORM CPI LTD,                         ,REVENUE SERVICES,NNDR Additional Rateable Values,Central Services to the Public
Swale Borough Council,29UM,04/05/2016,1141058,200.00,KENT COUNTY COUNCIL,                         ,DEMOCRATIC & ELECTORAL SERVICES,Hire Of Premises,Ledger/Suspense Codes
Swale Borough Council,29UM,04/05/2016,1141058,200.00,KENT COUNTY COUNCIL,                         ,DEMOCRATIC & ELECTORAL SERVICES,Hire Of Premises,Ledger/Suspense Codes
Swale Borough Council,29UM,04/05/2016,1140904,16092.18,KGB CLEANING & SUPPORT SERVICES LTD,                         ,CONTRACT & PROCUREMENT,Private Contractors,Environmental and Regulatory Services
Swale Borough Council,29UM,04/05/2016,1141045,500.00,LEMAR LIMITED,04350292                 ,LEISURE & OPEN SPACES,Maintenance - Grounds,Cultural and Related Services
Swale Borough Council,29UM,04/05/2016,1141045,845.00,LEMAR LIMITED,04350292                 ,LEISURE & OPEN SPACES,Maintenance - Grounds,Cultural and Related Services
Swale Borough Council,29UM,04/05/2016,1141047,1500.00,LEMAR LIMITED,04350292                 ,SERVICE DELIVERY,Private Contractors - CIS,Highway and Transport Services
Swale Borough Council,29UM,04/05/2016,1141047,900.00,LEMAR LIMITED,04350292                 ,SERVICE DELIVERY,Private Contractors - CIS,Highway and Transport Services
Swale Borough Council,29UM,04/05/2016,1140993,1776.00,MACDONALD & COMPANY FREELANCE LTD,3882135                  ,PLANNING SERVICES,Agency/Contract Staff,Internal Trading Cost Centres
Swale Borough Council,29UM,04/05/2016,1140185,16172.00,MAIDSTONE BOROUGH COUNCIL,                         ,ICT,Payments in Year,Ledger/Suspense Codes
Swale Borough Council,29UM,04/05/2016,1140185,63330.06,MAIDSTONE BOROUGH COUNCIL,                         ,ICT,Computer Equipment,Not used in this Structure
Swale Borough Council,29UM,04/05/2016,1140224,19500.75,MAIDSTONE BOROUGH COUNCIL,                         ,ICT,Computer Equipment & Materials,Internal Trading Cost Centres
Swale Borough Council,29UM,04/05/2016,1140224,-8894.00,MAIDSTONE BOROUGH COUNCIL,                         ,ICT,MKIP Charges for ICT,Internal Trading Cost Centres
Swale Borough Council,29UM,04/05/2016,1140943,1635.48,MATCHTECH,4426336                  ,PLANNING SERVICES,Agency/Contract Staff,Internal Trading Cost Centres
Swale Borough Council,29UM,04/05/2016,1141099,1628.00,MATCHTECH,4426336                  ,PLANNING SERVICES,Agency/Contract Staff,Internal Trading Cost Centres
Swale Borough Council,29UM,04/05/2016,1140966,1112.00,MAYLOW CONSTRUCTION LTD,                         ,LEISURE & OPEN SPACES,Play Equipment Maintenance - CIS,Cultural and Related Services
Swale Borough Council,29UM,04/05/2016,1140966,67.00,MAYLOW CONSTRUCTION LTD,                         ,LEISURE & OPEN SPACES,Play Equipment Maintenance - CIS,Cultural and Related Services
Swale Borough Council,29UM,04/05/2016,1140979,400.00,MILTON CREEK TRUST,                         ,COMMUNITY SAFETY,Grants & Subscriptions,Central Services to the Public
Swale Borough Council,29UM,04/05/2016,1140991,3000.00,MR J W GATES,                         ,SERVICE DELIVERY,Private Contractors - CIS,Environmental and Regulatory Services
Swale Borough Council,29UM,04/05/2016,1140924,897.30,PATROL,                         ,CAR PARKS,Parking Adjudication Fees,Highway and Transport Services
Swale Borough Council,29UM,04/05/2016,1140924,897.30,PATROL,                         ,CAR PARKS,Parking Adjudication Fees,Highway and Transport Services
Swale Borough Council,29UM,04/05/2016,1141236,15697.00,PEAC HOLDINGS (UK) LTD (DT),3088213                  ,LEISURE & OPEN SPACES,Contracts,Cultural and Related Services
Swale Borough Council,29UM,04/05/2016,1141237,15697.00,PEAC HOLDINGS (UK) LTD (DT),3088213                  ,LEISURE & OPEN SPACES,Contracts,Cultural and Related Services
Swale Borough Council,29UM,04/05/2016,1141238,15697.00,PEAC HOLDINGS (UK) LTD (DT),3088213                  ,LEISURE & OPEN SPACES,Contracts,Cultural and Related Services
Swale Borough Council,29UM,04/05/2016,1140339,1200.00,QS CONSULT,                         ,COMMUNITY SAFETY,Capitalised Fees And Charges,Not used in this Structure
Swale Borough Council,29UM,04/05/2016,1141208,140.00,HEMMING GROUP LTD,                         ,CHIEF EXECUTIVE,Grants & Subscriptions,Internal Trading Cost Centres
Swale Borough Council,29UM,04/05/2016,1141208,249.00,EMAP LTD,                         ,CHIEF EXECUTIVE,Grants & Subscriptions,Internal Trading Cost Centres
Swale Borough Council,29UM,04/05/2016,1141209,140.00,FLOWERS BY BEATRICE,,LEISURE & OPEN SPACES,Nursery Stock,Environmental and Regulatory Services
Swale Borough Council,29UM,04/05/2016,1141210,35.78,THIRSTY CUPS,,PROPERTY SERVICES,Equipment Purchase,Corporate & Democratic Core
Swale Borough Council,29UM,04/05/2016,1141210,42.94,THIRSTY CUPS,,PROPERTY SERVICES,Equipment Purchase,Corporate & Democratic Core
Swale Borough Council,29UM,04/05/2016,1141211,68.33,HOTELS.COM,,POLICY,Conference,Environmental and Regulatory Services
Swale Borough Council,29UM,04/05/2016,1141212,149.00,SOLACE,,POLICY,Seminars,Internal Trading Cost Centres
Swale Borough Council,29UM,04/05/2016,1141212,6.00,SAINSBURY'S,,DIRECTOR OF CORPORATE SERVICES,Catering Provisions,Internal Trading Cost Centres
Swale Borough Council,29UM,04/05/2016,1141212,36.00,ISTOCK.COM,,COMMUNITY SAFETY,Fees & Services,Environmental and Regulatory Services
Swale Borough Council,29UM,04/05/2016,1141213,58.71,JCT LTD,,CONTRACT & PROCUREMENT,"Books, Journals & e - resources",Internal Trading Cost Centres
Swale Borough Council,29UM,04/05/2016,1141213,7.85,SAINSBURY'S,,DIRECTOR OF REGENERATION,Catering Provisions,Internal Trading Cost Centres
Swale Borough Council,29UM,04/05/2016,1141214,150.00,SOLACE,                         ,POLICY,Conference,Corporate & Democratic Core
Swale Borough Council,29UM,04/05/2016,1141214,82.60,SAINSBURY'S,                         ,CHIEF EXECUTIVE,Catering Provisions,Corporate & Democratic Core
Swale Borough Council,29UM,04/05/2016,1141214,25.00,THE THREE TUNS,                         ,CHIEF EXECUTIVE,Prizes/Awards,Corporate & Democratic Core
Swale Borough Council,29UM,04/05/2016,1141214,50.00,KEEP BRITAIN TIDY,                         ,ENVIRONMENTAL RESPONSE TEAM,Payroll - Protective Clothing,Internal Trading Cost Centres
Swale Borough Council,29UM,04/05/2016,1141214,41.82,TRAINLINE,                         ,CHIEF EXECUTIVE,Staff Travel-Buses & Trains,Internal Trading Cost Centres
Swale Borough Council,29UM,04/05/2016,1141215,18.89,AMAZON,,REVENUE SERVICES,Stationery,Housing
Swale Borough Council,29UM,04/05/2016,1141216,19.99,ARGOS,                         ,HOUSING SERVICES,Staying Put - Materials,Housing
Swale Borough Council,29UM,04/05/2016,1141216,12.60,WICKES,                         ,HOUSING SERVICES,Staying Put - Materials,Housing
Swale Borough Council,29UM,04/05/2016,1141216,166.67,SMC SITTINGBOURNE,                         ,HOUSING SERVICES,Hire & Leases,Housing
Swale Borough Council,29UM,04/05/2016,1141216,44.48,SMC SITTINGBOURNE,                         ,HOUSING SERVICES,Hire & Leases,Housing
Swale Borough Council,29UM,04/05/2016,1141216,19.99,ARGOS,                         ,HOUSING SERVICES,Staying Put - Materials,Housing
Swale Borough Council,29UM,04/05/2016,1141235,250.00,CILEX LAW SCHOOL,,MKIP LEGAL SERVICES,Training - Courses,Internal Trading Cost Centres
Swale Borough Council,29UM,04/05/2016,1141235,12.00,ICLR PUBLISHING,                         ,MKIP LEGAL SERVICES,"Books, Journals & e - resources",Internal Trading Cost Centres
Swale Borough Council,29UM,04/05/2016,1141235,12.00,ICLR PUBLISHING,                         ,MKIP LEGAL SERVICES,"Books, Journals & e - resources",Internal Trading Cost Centres
Swale Borough Council,29UM,04/05/2016,1141235,14.08,AMAZON,                         ,MKIP LEGAL SERVICES,"Books, Journals & e - resources",Internal Trading Cost Centres
Swale Borough Council,29UM,04/05/2016,1141235,34.65,CILEX LAW SCHOOL,                         ,MKIP LEGAL SERVICES,"Books, Journals & e - resources",Internal Trading Cost Centres
Swale Borough Council,29UM,04/05/2016,1140989,563.68,ROYAL MAIL GROUP LTD,4138203                  ,REVENUE SERVICES,Postage,Central Services to the Public
Swale Borough Council,29UM,04/05/2016,1140980,350.00,RUSHENDEN COMMUNITY HALL ASSOCIATION,                         ,COMMUNITY SAFETY,Grants & Subscriptions,Central Services to the Public
Swale Borough Council,29UM,04/05/2016,1141151,3564.00,S A BRIGGS,                         ,HOUSING SERVICES,Housing Renovation Grants,Not used in this Structure
Swale Borough Council,29UM,04/05/2016,1140691,9036.92,SERCO LEISURE OPERATING LIMITED,04687478                 ,LEISURE & OPEN SPACES,Procurement Contracts Only,Cultural and Related Services
Swale Borough Council,29UM,04/05/2016,1141056,300.00,SOUTH EAST EMPLOYERS,                         ,HUMAN RESOURCES,Management Consultants Fees,Corporate & Democratic Core
Swale Borough Council,29UM,04/05/2016,1140975,250.00,SOUTH EAST WATER LTD,2679874                  ,MKIP ENVIRONMENTAL SERVICES,Fees - Analysis / Monitoring,Environmental and Regulatory Services
Swale Borough Council,29UM,04/05/2016,1141149,4655.00,STANNAH LIFT SERVICES,                         ,HOUSING SERVICES,Housing Renovation Grants,Not used in this Structure
Swale Borough Council,29UM,04/05/2016,1140546,500.00,SYNERGY CONSTRUCTION & PROPERTY CONSULTANTS LLP,                         ,COMMUNITY SAFETY,Capitalised Fees And Charges,Not used in this Structure
Swale Borough Council,29UM,04/05/2016,1140925,265.00,TEYNHAM LANDSCAPING LTD,                         ,LEISURE & OPEN SPACES,Maintenance - Grounds Contract,Cultural and Related Services
Swale Borough Council,29UM,04/05/2016,1140927,570.00,TEYNHAM LANDSCAPING LTD,                         ,LEISURE & OPEN SPACES,Maintenance - Grounds Contract,Cultural and Related Services
Swale Borough Council,29UM,04/05/2016,1141054,400.00,THE DOLPHIN SAILING BARGE MUSEUM TRUST,                         ,COMMUNITY SAFETY,Grants & Subscriptions,Central Services to the Public
Swale Borough Council,29UM,04/05/2016,1141055,1000.00,THE DOLPHIN SAILING BARGE MUSEUM TRUST,                         ,TOURISM & SPORTS DEVELOPMENT,Grants & Subscriptions,Cultural and Related Services
Swale Borough Council,29UM,04/05/2016,1140997,750.00,THE FAVERSHAM SOCIETY,250945                   ,TOURISM & SPORTS DEVELOPMENT,Grants & Subscriptions,Cultural and Related Services
Swale Borough Council,29UM,04/05/2016,1141150,1000.00,TPS BUILDING SERVICES,                         ,HOUSING SERVICES,Housing Renovation Grants,Not used in this Structure
Swale Borough Council,29UM,04/05/2016,1141050,487.50,SOUND ADVICE PA INSTALLATIONS LTD,                         ,PROPERTY SERVICES,Service Contracts,Corporate & Democratic Core
Swale Borough Council,29UM,04/05/2016,1141094,4500.77,VISIT KENT,                         ,TOURISM & SPORTS DEVELOPMENT,Fees And Services,Cultural and Related Services
Swale Borough Council,29UM,04/05/2016,1140961,663.48,WHISTL UK LIMITED,04417047                 ,REVENUE SERVICES,Postage,Central Services to the Public
Swale Borough Council,29UM,04/05/2016,1140961,331.74,WHISTL UK LIMITED,04417047                 ,REVENUE SERVICES,Postage,Housing
Swale Borough Council,29UM,04/05/2016,1140961,560.50,WHISTL UK LIMITED,04417047                 ,PROPERTY SERVICES,Postage,Holding Codes
Swale Borough Council,29UM,04/05/2016,1141081,718.73,WHISTL UK LIMITED,04417047                 ,REVENUE SERVICES,Postage,Central Services to the Public
Swale Borough Council,29UM,04/05/2016,1141081,359.37,WHISTL UK LIMITED,04417047                 ,REVENUE SERVICES,Postage,Housing
Swale Borough Council,29UM,04/05/2016,1141081,666.80,WHISTL UK LIMITED,04417047                 ,PROPERTY SERVICES,Postage,Holding Codes
Swale Borough Council,29UM,04/05/2016,1140972,296.63,WILLOW TREE HOME SOLUTIONS LTD,                         ,HOUSING SERVICES,Staying Put small repairs (contractors),Housing
Swale Borough Council,29UM,11/05/2016,1141233,7600.00,ACS SYSTEMS (UK) LTD,2988060                  ,ICT,Payments in Year,Ledger/Suspense Codes
Swale Borough Council,29UM,11/05/2016,1141264,47.90,ALLSTAR BUSINESS SOLUTIONS LTD - (DT),1073098                  ,DEMOCRATIC & ELECTORAL SERVICES,Petrol/Derv & Oil,Corporate & Democratic Core
Swale Borough Council,29UM,11/05/2016,1141264,72.52,ALLSTAR BUSINESS SOLUTIONS LTD - (DT),1073098                  ,SERVICE DELIVERY,Petrol/Derv & Oil,Cultural and Related Services
Swale Borough Council,29UM,11/05/2016,1141264,130.54,ALLSTAR BUSINESS SOLUTIONS LTD - (DT),1073098                  ,ENVIRONMENTAL RESPONSE TEAM,Fuel For Contract Vehicles,Internal Trading Cost Centres
Swale Borough Council,29UM,11/05/2016,1141264,1.71,ALLSTAR BUSINESS SOLUTIONS LTD - (DT),1073098                  ,LEISURE & OPEN SPACES,Fuel For Contract Vehicles,Cultural and Related Services
Swale Borough Council,29UM,11/05/2016,1141264,1.71,ALLSTAR BUSINESS SOLUTIONS LTD - (DT),1073098                  ,ENVIRONMENTAL RESPONSE TEAM,Fuel For Contract Vehicles,Environmental and Regulatory Services
Swale Borough Council,29UM,11/05/2016,1141264,1.71,ALLSTAR BUSINESS SOLUTIONS LTD - (DT),1073098                  ,HOUSING SERVICES,Fuel For Contract Vehicles,Housing
Swale Borough Council,29UM,11/05/2016,1141145,12856.01,APCOA PARKING (UK) LTD,2572947                  ,CAR PARKS,Private Contractors,Highway and Transport Services
Swale Borough Council,29UM,11/05/2016,1141145,19284.01,APCOA PARKING (UK) LTD,2572947                  ,CAR PARKS,Private Contractors,Highway and Transport Services
Swale Borough Council,29UM,11/05/2016,1141265,16000.00,ARLINGCLOSE LTD.,2853836                  ,FINANCIAL SERVICES,Consultancy/Specialist Advice,Corporate & Democratic Core
Swale Borough Council,29UM,11/05/2016,1141272,1050.00,AYS LTD,                         ,CAR PARKS,Maintenance - Grounds,Highway and Transport Services
Swale Borough Council,29UM,11/05/2016,1141273,325.00,AYS LTD,                         ,CAR PARKS,Maintenance - Grounds,Highway and Transport Services
Swale Borough Council,29UM,11/05/2016,1141278,1495.00,AYS LTD,                         ,CAR PARKS,Maintenance - Grounds,Highway and Transport Services
Swale Borough Council,29UM,11/05/2016,1141274,3640.00,BIFFA MUNICIPAL SERVICES LTD,4321212                  ,PROPERTY SERVICES,Trade Waste-Refuse,Corporate & Democratic Core
Swale Borough Council,29UM,11/05/2016,1141165,608.40,BLENWOOD LTD,4383277                  ,LEISURE & OPEN SPACES,Grounds Contract Variations,Cultural and Related Services
Swale Borough Council,29UM,11/05/2016,1140895,1960.00,BT DEVELOPMENTS,                         ,HOUSING SERVICES,B & B - Landlords Payments,Housing
Swale Borough Council,29UM,11/05/2016,1141217,845.00,CAPITA BUSINESS SERVICES LTD,                         ,REVENUE SERVICES,Grants & Subscriptions,Central Services to the Public
Swale Borough Council,29UM,11/05/2016,1141060,1190.00,CIPFA BUSINESS LTD,2376684                  ,FINANCIAL SERVICES,Grants & Subscriptions,Internal Trading Cost Centres
Swale Borough Council,29UM,11/05/2016,1141079,267.30,CITY & KENT CLEANING LTD,                         ,PROPERTY SERVICES,Cleaning Materials,Internal Trading Cost Centres
Swale Borough Council,29UM,11/05/2016,1141221,460.20,CITY OF LONDON,                         ,MKIP ENVIRONMENTAL SERVICES,Sampling / Monitoring,Environmental and Regulatory Services
Swale Borough Council,29UM,11/05/2016,1141153,666.66,CLARKES SPORTS STUDIO,                         ,LEISURE & OPEN SPACES,Grants & Subscriptions,Cultural and Related Services
Swale Borough Council,29UM,11/05/2016,1141366,420.09,CLEAR CHANNEL UK LTD,                         ,COMMUNICATIONS,Advertising & Promotion,Internal Trading Cost Centres
Swale Borough Council,29UM,11/05/2016,1141037,6497.03,COMENSURA LTD,04085767                 ,HUMAN RESOURCES,Agency/Contract Staff,Internal Trading Cost Centres
Swale Borough Council,29UM,11/05/2016,1141220,2466.71,COMENSURA LTD,04085767                 ,HUMAN RESOURCES,Agency/Contract Staff,Internal Trading Cost Centres
Swale Borough Council,29UM,11/05/2016,1141319,349.63,EDF ENERGY,2228297                  ,CAR PARKS,Electricity,Highway and Transport Services
Swale Borough Council,29UM,11/05/2016,1141154,4498.59,GLASDON U.K.LIMITED,2160576                  ,SERVICE DELIVERY,Maintenance - Grounds,Cultural and Related Services
Swale Borough Council,29UM,11/05/2016,1141260,288.00,HAYMARKET MEDIA GROUP LTD,                         ,LEISURE & OPEN SPACES,"Books, Journals & e - resources",Internal Trading Cost Centres
Swale Borough Council,29UM,11/05/2016,1141095,265.00,HITACHI CAPITAL VEHICLE SOLUTIONS LTD,                         ,SERVICE DELIVERY,Undue Wear & Tear Rental Car,Cultural and Related Services
Swale Borough Council,29UM,11/05/2016,1141376,2648.58,HUBBARD & HOUGHTON CONSTRUCTION LTD,                         ,HOUSING SERVICES,Housing Renovation Grants,Not used in this Structure
Swale Borough Council,29UM,11/05/2016,1141377,588.70,HUBBARD & HOUGHTON CONSTRUCTION LTD,                         ,HOUSING SERVICES,Housing Renovation Grants,Not used in this Structure
Swale Borough Council,29UM,11/05/2016,1141378,718.18,HUBBARD & HOUGHTON CONSTRUCTION LTD,                         ,HOUSING SERVICES,Housing Renovation Grants,Not used in this Structure
Swale Borough Council,29UM,11/05/2016,1141379,5777.32,HUBBARD & HOUGHTON CONSTRUCTION LTD,                         ,HOUSING SERVICES,Housing Renovation Grants,Not used in this Structure
Swale Borough Council,29UM,11/05/2016,1141375,9522.55,J & D SYSTEMS,                         ,HOUSING SERVICES,Housing Renovation Grants,Not used in this Structure
Swale Borough Council,29UM,11/05/2016,1141118,645.00,JASMIL KENNELS,05595524                 ,ENVIRONMENTAL RESPONSE TEAM,Kennelling Of Dogs,Environmental and Regulatory Services
Swale Borough Council,29UM,11/05/2016,1141118,-285.00,JASMIL KENNELS,05595524                 ,ENVIRONMENTAL RESPONSE TEAM,Income collected by Dog Kennels,Environmental and Regulatory Services
Swale Borough Council,29UM,11/05/2016,1141155,2250.00,JOBS GO PUBLIC,                         ,HUMAN RESOURCES,Recruitment Adverts - Staff,Internal Trading Cost Centres
Swale Borough Council,29UM,11/05/2016,1141097,20891.00,KGB CLEANING & SUPPORT SERVICES LTD,                         ,CONTRACT & PROCUREMENT,Private Contractors,Environmental and Regulatory Services
Swale Borough Council,29UM,11/05/2016,1141306,250.00,LEMAR LIMITED,04350292                 ,SERVICE DELIVERY,Private Contractors - CIS,Highway and Transport Services
Swale Borough Council,29UM,11/05/2016,1141306,157.00,LEMAR LIMITED,04350292                 ,SERVICE DELIVERY,Private Contractors - CIS,Highway and Transport Services
Swale Borough Council,29UM,11/05/2016,1140818,1102.11,LLOYDS BANK - (DT),                         ,FINANCIAL SERVICES,Bank Charges,Corporate & Democratic Core
Swale Borough Council,29UM,11/05/2016,1141090,10450.00,LOCAL GOVERNMENT ASSOCIATION,                         ,DEMOCRATIC & ELECTORAL SERVICES,Grants & Subscriptions,Corporate & Democratic Core
Swale Borough Council,29UM,11/05/2016,1141161,1417.50,LUSHLAND,4289261                  ,PLANNING SERVICES,Fees And Services,Planning and Development Services
Swale Borough Council,29UM,11/05/2016,1141128,340.00,LYRECO UK LTD,                         ,PROPERTY SERVICES,Paper,Internal Trading Cost Centres
Swale Borough Council,29UM,11/05/2016,1141134,340.00,LYRECO UK LTD,                         ,PROPERTY SERVICES,Paper,Internal Trading Cost Centres
Swale Borough Council,29UM,11/05/2016,1141137,235.48,LYRECO UK LTD,                         ,DEMOCRATIC & ELECTORAL SERVICES,Stationery,Ledger/Suspense Codes
Swale Borough Council,29UM,11/05/2016,1141137,37.17,LYRECO UK LTD,                         ,DEMOCRATIC & ELECTORAL SERVICES,Stationery,Ledger/Suspense Codes
Swale Borough Council,29UM,11/05/2016,1141170,1776.00,MACDONALD & COMPANY FREELANCE LTD,3882135                  ,PLANNING SERVICES,Agency/Contract Staff,Internal Trading Cost Centres
Swale Borough Council,29UM,11/05/2016,1140841,3740.00,MAGEES GUESTHOUSE,                         ,HOUSING SERVICES,B & B - Landlords Payments,Housing
Swale Borough Council,29UM,11/05/2016,1141052,3265.00,MAGEES GUESTHOUSE,                         ,HOUSING SERVICES,B & B - Landlords Payments,Housing
Swale Borough Council,29UM,11/05/2016,1140534,2152.80,MEDWAY ACCOMMODATION LIMITED,                         ,HOUSING SERVICES,B & B - Landlords Payments,Housing
Swale Borough Council,29UM,11/05/2016,1140534,448.50,MEDWAY ACCOMMODATION LIMITED,                         ,HOUSING SERVICES,B & B - Landlords Payments,Housing
Swale Borough Council,29UM,11/05/2016,1140715,1981.60,MEDWAY ACCOMMODATION LIMITED,                         ,HOUSING SERVICES,B & B - Landlords Payments,Housing
Swale Borough Council,29UM,11/05/2016,1140715,412.83,MEDWAY ACCOMMODATION LIMITED,                         ,HOUSING SERVICES,B & B - Landlords Payments,Housing
Swale Borough Council,29UM,11/05/2016,1140821,443.50,MEDWAY ACCOMMODATION LIMITED,                         ,HOUSING SERVICES,B & B - Landlords Payments,Housing
Swale Borough Council,29UM,11/05/2016,1140821,2128.80,MEDWAY ACCOMMODATION LIMITED,                         ,HOUSING SERVICES,B & B - Landlords Payments,Housing
Swale Borough Council,29UM,11/05/2016,1141160,2975.00,MELENGA BUSINESS SOLUTIONS LTD,06148446                 ,FINANCIAL SERVICES,Agency/Contract Staff,Internal Trading Cost Centres
Swale Borough Council,29UM,11/05/2016,1141152,585.00,METRIC GROUP LTD,2560839                  ,CAR PARKS,Fees - Licence,Highway and Transport Services
Swale Borough Council,29UM,11/05/2016,1141182,2080.80,METRIC GROUP LTD,2560839                  ,CAR PARKS,Equipment Maintenance,Highway and Transport Services
Swale Borough Council,29UM,11/05/2016,1141223,300.00,REDACTED PERSONAL INFORMATION,                         ,ENVIRONMENTAL RESPONSE TEAM,Legal Fees,Internal Trading Cost Centres
Swale Borough Council,29UM,11/05/2016,1141223,60.00,REDACTED PERSONAL INFORMATION,                         ,ENVIRONMENTAL RESPONSE TEAM,Legal Fees,Internal Trading Cost Centres
Swale Borough Council,29UM,11/05/2016,1141172,325.00,MR J W GATES,                         ,LEISURE & OPEN SPACES,Maintenance - Grounds,Cultural and Related Services
Swale Borough Council,29UM,11/05/2016,1141311,75.00,MR J W GATES,                         ,SERVICE DELIVERY,Maintenance - Grounds,Cultural and Related Services
Swale Borough Council,29UM,11/05/2016,1141311,250.00,MR J W GATES,                         ,SERVICE DELIVERY,Maintenance - Grounds,Cultural and Related Services
Swale Borough Council,29UM,11/05/2016,1141189,250.00,REDACTED PERSONAL INFORMATION,                         ,TOURISM & SPORTS DEVELOPMENT,Grants & Subscriptions,Cultural and Related Services
Swale Borough Council,29UM,11/05/2016,1140733,9.50,O2 (UK) LTD,1743099                  ,SUSTAINABLE SHEPPEY,Cellphone,Environmental and Regulatory Services
Swale Borough Council,29UM,11/05/2016,1140733,17.23,O2 (UK) LTD,1743099                  ,COMMUNITY SAFETY,Cellphone,Planning and Development Services
Swale Borough Council,29UM,11/05/2016,1140733,7.05,O2 (UK) LTD,1743099                  ,COMMUNITY SAFETY,Cellphone,Planning and Development Services
Swale Borough Council,29UM,11/05/2016,1140733,32.70,O2 (UK) LTD,1743099                  ,COMMUNITY SAFETY,Cellphone,Environmental and Regulatory Services
Swale Borough Council,29UM,11/05/2016,1140733,9.50,O2 (UK) LTD,1743099                  ,POLICY,Cellphone,Corporate & Democratic Core
Swale Borough Council,29UM,11/05/2016,1140733,15.00,O2 (UK) LTD,1743099                  ,PLANNING SERVICES,Cellphone,Planning and Development Services
Swale Borough Council,29UM,11/05/2016,1140733,10.12,O2 (UK) LTD,1743099                  ,PLANNING SERVICES,Cellphone,Planning and Development Services
Swale Borough Council,29UM,11/05/2016,1140733,9.50,O2 (UK) LTD,1743099                  ,EMERGENCY PLANNING,Cellphone,Central Services to the Public
Swale Borough Council,29UM,11/05/2016,1140733,22.10,O2 (UK) LTD,1743099                  ,SERVICE DELIVERY,Cellphone,Cultural and Related Services
Swale Borough Council,29UM,11/05/2016,1140733,37.24,O2 (UK) LTD,1743099                  ,HOUSING SERVICES,Cellphone,Housing
Swale Borough Council,29UM,11/05/2016,1140733,25.75,O2 (UK) LTD,1743099                  ,REVENUE SERVICES,Cellphone,Housing
Swale Borough Council,29UM,11/05/2016,1140733,7.00,O2 (UK) LTD,1743099                  ,HOUSING SERVICES,Cellphone,Housing
Swale Borough Council,29UM,11/05/2016,1140733,54.16,O2 (UK) LTD,1743099                  ,PROPERTY SERVICES,Cellphone,Internal Trading Cost Centres
Swale Borough Council,29UM,11/05/2016,1140733,7.00,O2 (UK) LTD,1743099                  ,DEMOCRATIC & ELECTORAL SERVICES,Cellphone,Internal Trading Cost Centres
Swale Borough Council,29UM,11/05/2016,1140733,9.50,O2 (UK) LTD,1743099                  ,DIRECTOR OF CORPORATE SERVICES,Cellphone,Internal Trading Cost Centres
Swale Borough Council,29UM,11/05/2016,1140733,7.00,O2 (UK) LTD,1743099                  ,ECONOMY & COMMUNITIES,Cellphone,Internal Trading Cost Centres
Swale Borough Council,29UM,11/05/2016,1140733,19.00,O2 (UK) LTD,1743099                  ,TOURISM & SPORTS DEVELOPMENT,Cellphone,Internal Trading Cost Centres
Swale Borough Council,29UM,11/05/2016,1140733,40.01,O2 (UK) LTD,1743099                  ,ECONOMIC DEVELOPMENT,Cellphone,Internal Trading Cost Centres
Swale Borough Council,29UM,11/05/2016,1140733,19.50,O2 (UK) LTD,1743099                  ,SERVICE DELIVERY,Cellphone,Internal Trading Cost Centres
Swale Borough Council,29UM,11/05/2016,1140733,114.81,O2 (UK) LTD,1743099                  ,CONTRACT & PROCUREMENT,Cellphone,Internal Trading Cost Centres
Swale Borough Council,29UM,11/05/2016,1140733,49.88,O2 (UK) LTD,1743099                  ,MKIP ENVIRONMENTAL SERVICES,Cellphone,Internal Trading Cost Centres
Swale Borough Council,29UM,11/05/2016,1140733,47.97,O2 (UK) LTD,1743099                  ,MKIP ENVIRONMENTAL SERVICES,Cellphone,Internal Trading Cost Centres
Swale Borough Council,29UM,11/05/2016,1140733,76.75,O2 (UK) LTD,1743099                  ,ENVIRONMENTAL RESPONSE TEAM,Cellphone,Internal Trading Cost Centres
Swale Borough Council,29UM,11/05/2016,1140733,10.32,O2 (UK) LTD,1743099                  ,COMMISSIONING & CUSTOMER CONTACT,Cellphone,Internal Trading Cost Centres
Swale Borough Council,29UM,11/05/2016,1140733,12.24,O2 (UK) LTD,1743099                  ,PLANNING SERVICES,Cellphone,Internal Trading Cost Centres
Swale Borough Council,29UM,11/05/2016,1140733,45.00,O2 (UK) LTD,1743099                  ,LEISURE & OPEN SPACES,Cellphone,Internal Trading Cost Centres
Swale Borough Council,29UM,11/05/2016,1140733,19.50,O2 (UK) LTD,1743099                  ,CHIEF EXECUTIVE,Cellphone,Internal Trading Cost Centres
Swale Borough Council,29UM,11/05/2016,1140733,9.42,O2 (UK) LTD,1743099                  ,DIRECTOR OF CORPORATE SERVICES,Cellphone,Internal Trading Cost Centres
Swale Borough Council,29UM,11/05/2016,1140733,21.49,O2 (UK) LTD,1743099                  ,DIRECTOR OF REGENERATION,Cellphone,Internal Trading Cost Centres
Swale Borough Council,29UM,11/05/2016,1140733,21.53,O2 (UK) LTD,1743099                  ,COMMISSIONING & CUSTOMER CONTACT,Cellphone,Internal Trading Cost Centres
Swale Borough Council,29UM,11/05/2016,1140733,9.22,O2 (UK) LTD,1743099                  ,COMMISSIONING & CUSTOMER CONTACT,Cellphone,Internal Trading Cost Centres
Swale Borough Council,29UM,11/05/2016,1140733,7.25,O2 (UK) LTD,1743099                  ,POLICY,Cellphone,Internal Trading Cost Centres
Swale Borough Council,29UM,11/05/2016,1140733,14.23,O2 (UK) LTD,1743099                  ,COMMUNICATIONS,Cellphone,Internal Trading Cost Centres
Swale Borough Council,29UM,11/05/2016,1140733,38.00,O2 (UK) LTD,1743099                  ,ENVIRONMENTAL RESPONSE TEAM,Cellphone,Internal Trading Cost Centres
Swale Borough Council,29UM,11/05/2016,1140733,27.92,O2 (UK) LTD,1743099                  ,MKIP LEGAL SERVICES,Cellphone,Internal Trading Cost Centres
Swale Borough Council,29UM,11/05/2016,1140733,7.77,O2 (UK) LTD,1743099                  ,ICT,Telephone,Corporate & Democratic Core
Swale Borough Council,29UM,11/05/2016,1140733,2.00,O2 (UK) LTD,1743099                  ,LEISURE & OPEN SPACES,Cellphone,Cultural and Related Services
Swale Borough Council,29UM,11/05/2016,1140733,2.00,O2 (UK) LTD,1743099                  ,HOUSING SERVICES,Cellphone,Housing
Swale Borough Council,29UM,11/05/2016,1140733,33.98,O2 (UK) LTD,1743099                  ,HOUSING SERVICES,Cellphone,Housing
Swale Borough Council,29UM,11/05/2016,1140733,15.32,O2 (UK) LTD,1743099                  ,ENVIRONMENTAL RESPONSE TEAM,Cellphone,Environmental and Regulatory Services
Swale Borough Council,29UM,11/05/2016,1140733,10.06,O2 (UK) LTD,1743099                  ,TOURISM & SPORTS DEVELOPMENT,Cellphone,Cultural and Related Services
Swale Borough Council,29UM,11/05/2016,1140733,2.43,O2 (UK) LTD,1743099                  ,HOUSING SERVICES,Cellphone,Housing
Swale Borough Council,29UM,11/05/2016,1140734,9.50,O2 (UK) LTD,1743099                  ,SUSTAINABLE SHEPPEY,Cellphone,Environmental and Regulatory Services
Swale Borough Council,29UM,11/05/2016,1140734,16.67,O2 (UK) LTD,1743099                  ,COMMUNITY SAFETY,Cellphone,Planning and Development Services
Swale Borough Council,29UM,11/05/2016,1140734,7.46,O2 (UK) LTD,1743099                  ,COMMUNITY SAFETY,Cellphone,Planning and Development Services
Swale Borough Council,29UM,11/05/2016,1140734,33.00,O2 (UK) LTD,1743099                  ,COMMUNITY SAFETY,Cellphone,Environmental and Regulatory Services
Swale Borough Council,29UM,11/05/2016,1140734,9.50,O2 (UK) LTD,1743099                  ,POLICY,Cellphone,Corporate & Democratic Core
Swale Borough Council,29UM,11/05/2016,1140734,17.13,O2 (UK) LTD,1743099                  ,PLANNING SERVICES,Cellphone,Planning and Development Services
Swale Borough Council,29UM,11/05/2016,1140734,10.12,O2 (UK) LTD,1743099                  ,PLANNING SERVICES,Cellphone,Planning and Development Services
Swale Borough Council,29UM,11/05/2016,1140734,9.50,O2 (UK) LTD,1743099                  ,EMERGENCY PLANNING,Cellphone,Central Services to the Public
Swale Borough Council,29UM,11/05/2016,1140734,28.60,O2 (UK) LTD,1743099                  ,SERVICE DELIVERY,Cellphone,Cultural and Related Services
Swale Borough Council,29UM,11/05/2016,1140734,37.44,O2 (UK) LTD,1743099                  ,HOUSING SERVICES,Cellphone,Housing
Swale Borough Council,29UM,11/05/2016,1140734,26.16,O2 (UK) LTD,1743099                  ,REVENUE SERVICES,Cellphone,Housing
Swale Borough Council,29UM,11/05/2016,1140734,7.00,O2 (UK) LTD,1743099                  ,HOUSING SERVICES,Cellphone,Housing
Swale Borough Council,29UM,11/05/2016,1140734,7.00,O2 (UK) LTD,1743099                  ,DEMOCRATIC & ELECTORAL SERVICES,Cellphone,Internal Trading Cost Centres
Swale Borough Council,29UM,11/05/2016,1140734,9.50,O2 (UK) LTD,1743099                  ,DIRECTOR OF CORPORATE SERVICES,Cellphone,Internal Trading Cost Centres
Swale Borough Council,29UM,11/05/2016,1140734,55.14,O2 (UK) LTD,1743099                  ,PROPERTY SERVICES,Cellphone,Internal Trading Cost Centres
Swale Borough Council,29UM,11/05/2016,1140734,19.00,O2 (UK) LTD,1743099                  ,TOURISM & SPORTS DEVELOPMENT,Cellphone,Internal Trading Cost Centres
Swale Borough Council,29UM,11/05/2016,1140734,30.72,O2 (UK) LTD,1743099                  ,ECONOMIC DEVELOPMENT,Cellphone,Internal Trading Cost Centres
Swale Borough Council,29UM,11/05/2016,1140734,19.13,O2 (UK) LTD,1743099                  ,SERVICE DELIVERY,Cellphone,Internal Trading Cost Centres
Swale Borough Council,29UM,11/05/2016,1140734,50.00,O2 (UK) LTD,1743099                  ,MKIP ENVIRONMENTAL SERVICES,Cellphone,Internal Trading Cost Centres
Swale Borough Council,29UM,11/05/2016,1140734,116.50,O2 (UK) LTD,1743099                  ,CONTRACT & PROCUREMENT,Cellphone,Internal Trading Cost Centres
Swale Borough Council,29UM,11/05/2016,1140734,48.60,O2 (UK) LTD,1743099                  ,MKIP ENVIRONMENTAL SERVICES,Cellphone,Internal Trading Cost Centres
Swale Borough Council,29UM,11/05/2016,1140734,78.50,O2 (UK) LTD,1743099                  ,ENVIRONMENTAL RESPONSE TEAM,Cellphone,Internal Trading Cost Centres
Swale Borough Council,29UM,11/05/2016,1140734,14.65,O2 (UK) LTD,1743099                  ,COMMISSIONING & CUSTOMER CONTACT,Cellphone,Internal Trading Cost Centres
Swale Borough Council,29UM,11/05/2016,1140734,11.61,O2 (UK) LTD,1743099                  ,PLANNING SERVICES,Cellphone,Internal Trading Cost Centres
Swale Borough Council,29UM,11/05/2016,1140734,45.31,O2 (UK) LTD,1743099                  ,LEISURE & OPEN SPACES,Cellphone,Internal Trading Cost Centres
Swale Borough Council,29UM,11/05/2016,1140734,19.50,O2 (UK) LTD,1743099                  ,CHIEF EXECUTIVE,Cellphone,Internal Trading Cost Centres
Swale Borough Council,29UM,11/05/2016,1140734,9.50,O2 (UK) LTD,1743099                  ,DIRECTOR OF CORPORATE SERVICES,Cellphone,Internal Trading Cost Centres
Swale Borough Council,29UM,11/05/2016,1140734,9.50,O2 (UK) LTD,1743099                  ,DIRECTOR OF REGENERATION,Cellphone,Internal Trading Cost Centres
Swale Borough Council,29UM,11/05/2016,1140734,21.00,O2 (UK) LTD,1743099                  ,COMMISSIONING & CUSTOMER CONTACT,Cellphone,Internal Trading Cost Centres
Swale Borough Council,29UM,11/05/2016,1140734,7.40,O2 (UK) LTD,1743099                  ,COMMISSIONING & CUSTOMER CONTACT,Cellphone,Internal Trading Cost Centres
Swale Borough Council,29UM,11/05/2016,1140734,11.96,O2 (UK) LTD,1743099                  ,POLICY,Cellphone,Internal Trading Cost Centres
Swale Borough Council,29UM,11/05/2016,1140734,14.15,O2 (UK) LTD,1743099                  ,COMMUNICATIONS,Cellphone,Internal Trading Cost Centres
Swale Borough Council,29UM,11/05/2016,1140734,38.00,O2 (UK) LTD,1743099                  ,ENVIRONMENTAL RESPONSE TEAM,Cellphone,Internal Trading Cost Centres
Swale Borough Council,29UM,11/05/2016,1140734,28.75,O2 (UK) LTD,1743099                  ,MKIP LEGAL SERVICES,Cellphone,Internal Trading Cost Centres
Swale Borough Council,29UM,11/05/2016,1140734,14.84,O2 (UK) LTD,1743099                  ,ICT,Telephone,Corporate & Democratic Core
Swale Borough Council,29UM,11/05/2016,1140734,2.00,O2 (UK) LTD,1743099                  ,LEISURE & OPEN SPACES,Cellphone,Cultural and Related Services
Swale Borough Council,29UM,11/05/2016,1140734,2.00,O2 (UK) LTD,1743099                  ,HOUSING SERVICES,Cellphone,Housing
Swale Borough Council,29UM,11/05/2016,1140734,33.20,O2 (UK) LTD,1743099                  ,HOUSING SERVICES,Cellphone,Housing
Swale Borough Council,29UM,11/05/2016,1140734,29.76,O2 (UK) LTD,1743099                  ,ENVIRONMENTAL RESPONSE TEAM,Cellphone,Environmental and Regulatory Services
Swale Borough Council,29UM,11/05/2016,1140734,7.05,O2 (UK) LTD,1743099                  ,TOURISM & SPORTS DEVELOPMENT,Cellphone,Cultural and Related Services
Swale Borough Council,29UM,11/05/2016,1140734,2.34,O2 (UK) LTD,1743099                  ,HOUSING SERVICES,Cellphone,Housing
Swale Borough Council,29UM,11/05/2016,1141169,5538.00,P BINNIE CONSULTANCY LTD,07794784                 ,ECONOMIC DEVELOPMENT,Consultancy/Specialist Advice,Planning and Development Services
Swale Borough Council,29UM,11/05/2016,1141270,33.65,P&MM LTD,1090180                  ,HUMAN RESOURCES,Fees And Services,Corporate & Democratic Core
Swale Borough Council,29UM,11/05/2016,1141111,2500.00,PETER BRETT ASSOCIATES LLP,OC334398                 ,PLANNING SERVICES,Fees And Services,Planning and Development Services
Swale Borough Council,29UM,11/05/2016,1141257,5166.18,PITNEY BOWES SOFTWARE EUROPE LIMITED,01977325                 ,LEISURE & OPEN SPACES,Computer Equipment & Materials,Internal Trading Cost Centres
Swale Borough Council,29UM,11/05/2016,1141109,290.33,PORTAKABIN LIMITED,685303                   ,LEISURE & OPEN SPACES,Maintenance - Grounds,Environmental and Regulatory Services
Swale Borough Council,29UM,11/05/2016,1140999,431.97,PRIMESIGHT,1847728                  ,COMMUNICATIONS,Advertising & Promotion,Internal Trading Cost Centres
Swale Borough Council,29UM,11/05/2016,1140950,490.00,REARDON PROPERTIES,                         ,HOUSING SERVICES,B & B - Landlords Payments,Housing
Swale Borough Council,29UM,11/05/2016,1140951,835.00,REARDON PROPERTIES,                         ,HOUSING SERVICES,B & B - Landlords Payments,Housing
Swale Borough Council,29UM,11/05/2016,1140998,1132.50,RED BULLET,                         ,ECONOMIC DEVELOPMENT,Regeneration Fund Expenditure,Ledger/Suspense Codes
Swale Borough Council,29UM,11/05/2016,1140998,3027.50,RED BULLET,                         ,ECONOMIC DEVELOPMENT,Regeneration Fund Expenditure,Ledger/Suspense Codes
Swale Borough Council,29UM,11/05/2016,1141108,800.00,ROADMARKING EXCEL LTD,08121734                 ,CAR PARKS,Road Lining,Highway and Transport Services
Swale Borough Council,29UM,11/05/2016,1141178,57.20,ROYAL MAIL GROUP LTD,4138203                  ,REVENUE SERVICES,Postage,Central Services to the Public
Swale Borough Council,29UM,11/05/2016,1141178,5600.26,ROYAL MAIL GROUP LTD,4138203                  ,DEMOCRATIC & ELECTORAL SERVICES,Postage,Ledger/Suspense Codes
Swale Borough Council,29UM,11/05/2016,1141178,4.11,ROYAL MAIL GROUP LTD,4138203                  ,DEMOCRATIC & ELECTORAL SERVICES,Postage,Ledger/Suspense Codes
Swale Borough Council,29UM,11/05/2016,1141168,2608.50,REDACTED PERSONAL INFORMATION,                         ,MKIP LEGAL SERVICES,Agency/Contract Staff,Internal Trading Cost Centres
Swale Borough Council,29UM,11/05/2016,1141156,1160.00,RSP RAIL TRAVEL ACCOUNT - (DT),                         ,FINANCIAL SERVICES,Travel Warrants (Staff Travel),Internal Trading Cost Centres
Swale Borough Council,29UM,11/05/2016,1141167,375.00,RURAL PLANNING LTD,4426249                  ,PLANNING SERVICES,Fees And Services,Planning and Development Services
Swale Borough Council,29UM,11/05/2016,1141001,131.50,SEARCHFLOW LIMITED (DT),04084804                 ,HOUSING SERVICES,Consultancy/Specialist Advice,Housing
Swale Borough Council,29UM,11/05/2016,1141001,418.47,SEARCHFLOW LIMITED (DT),04084804                 ,HOUSING SERVICES,Consultancy/Specialist Advice,Housing
Swale Borough Council,29UM,11/05/2016,1141061,682.00,SHAKESPEARE MARTINEAU LLP CLIENTS ACCOUNT,OC319029                 ,ECONOMIC DEVELOPMENT,Legal Fees,Internal Trading Cost Centres
Swale Borough Council,29UM,11/05/2016,1141061,136.40,SHAKESPEARE MARTINEAU LLP CLIENTS ACCOUNT,OC319029                 ,ECONOMIC DEVELOPMENT,Legal Fees,Internal Trading Cost Centres
Swale Borough Council,29UM,11/05/2016,1141268,535.00,SOUTH & SOUTH EAST IN BLOOM,                         ,LEISURE & OPEN SPACES,Swale In Bloom,Cultural and Related Services
Swale Borough Council,29UM,11/05/2016,1141093,37540.00,STG BUILDING CONTROL PARTNERSHIP,                         ,PLANNING SERVICES,Contracts,Planning and Development Services
Swale Borough Council,29UM,11/05/2016,1141089,1350.00,SWALE PROPERTIES (KENT) LTD,                         ,HOUSING SERVICES,RDS - Rent in Advance (Supporting People),Housing
Swale Borough Council,29UM,11/05/2016,1141110,270.00,TEDDSONS & SONS LTD,08945129                 ,LEISURE & OPEN SPACES,Maintenance - Grounds,Cultural and Related Services
Swale Borough Council,29UM,11/05/2016,1141110,242.30,TEDDSONS & SONS LTD,08945129                 ,LEISURE & OPEN SPACES,Maintenance - Grounds,Cultural and Related Services
Swale Borough Council,29UM,11/05/2016,1140941,1504.30,THE ALEXANDER CENTRE TRUST LIMITED,07281634                 ,COMMISSIONING & CUSTOMER CONTACT,Rent,Internal Trading Cost Centres
Swale Borough Council,29UM,11/05/2016,1141185,2148.60,THE JOHN WOODWARD PARTNERSHIP,                         ,PLANNING SERVICES,Fees And Services,Planning and Development Services
Swale Borough Council,29UM,11/05/2016,1141082,922.50,VENN GROUP LIMITED,                         ,MKIP LEGAL SERVICES,Agency/Contract Staff,Internal Trading Cost Centres
Swale Borough Council,29UM,11/05/2016,1141083,900.00,VENN GROUP LIMITED,                         ,MKIP LEGAL SERVICES,Agency/Contract Staff,Internal Trading Cost Centres
Swale Borough Council,29UM,11/05/2016,1141084,1179.60,VENN GROUP LIMITED,                         ,MKIP LEGAL SERVICES,Agency/Contract Staff,Internal Trading Cost Centres
Swale Borough Council,29UM,11/05/2016,1141085,1230.00,VENN GROUP LIMITED,                         ,MKIP LEGAL SERVICES,Agency/Contract Staff,Internal Trading Cost Centres
Swale Borough Council,29UM,11/05/2016,1141086,1230.00,VENN GROUP LIMITED,                         ,MKIP LEGAL SERVICES,Agency/Contract Staff,Internal Trading Cost Centres
Swale Borough Council,29UM,11/05/2016,1141250,912.25,VENN GROUP LIMITED,                         ,MKIP LEGAL SERVICES,Agency/Contract Staff,Internal Trading Cost Centres
Swale Borough Council,29UM,11/05/2016,1141251,900.00,VENN GROUP LIMITED,                         ,MKIP LEGAL SERVICES,Agency/Contract Staff,Internal Trading Cost Centres
Swale Borough Council,29UM,11/05/2016,1141252,1230.00,VENN GROUP LIMITED,                         ,MKIP LEGAL SERVICES,Agency/Contract Staff,Internal Trading Cost Centres
Swale Borough Council,29UM,11/05/2016,1141253,266.50,VENN GROUP LIMITED,                         ,MKIP LEGAL SERVICES,Agency/Contract Staff,Internal Trading Cost Centres
Swale Borough Council,29UM,11/05/2016,1141254,1026.40,VENN GROUP LIMITED,                         ,MKIP LEGAL SERVICES,Agency/Contract Staff,Internal Trading Cost Centres
Swale Borough Council,29UM,11/05/2016,1141219,250.00,WEED MANAGEMENT LTD,4321175                  ,LEISURE & OPEN SPACES,Maintenance - Grounds,Environmental and Regulatory Services
Swale Borough Council,29UM,11/05/2016,1141116,1962.72,WICKSTEED LEISURE LTD,603152                   ,LEISURE & OPEN SPACES,Equipment Purchase,Cultural and Related Services
Swale Borough Council,29UM,11/05/2016,1140820,1266.78,SWIFT DATAPRO SOFTWARE LIMITED,7443094                  ,PLANNING SERVICES,Computer Equipment & Materials,Central Services to the Public
Swale Borough Council,29UM,17/05/2016,1141565,4253.50,WILLOW TREE HOME SOLUTIONS LTD,                         ,HOUSING SERVICES,Housing Renovation Grants,Not used in this Structure
Swale Borough Council,29UM,17/05/2016,4500514,-4253.50,WILLOW TREE HOME SOLUTIONS LTD,                         ,HOUSING SERVICES,Housing Renovation Grants,Not used in this Structure
Swale Borough Council,29UM,18/05/2016,1141444,580.20,ACTIVE LIFE LTD,4376721                  ,TOURISM & SPORTS DEVELOPMENT,Grants & Subscriptions,Cultural and Related Services
Swale Borough Council,29UM,18/05/2016,1141574,1725.00,ASCENDIT LIFTS LTD,3493530                  ,HOUSING SERVICES,Housing Renovation Grants,Not used in this Structure
Swale Borough Council,29UM,18/05/2016,1140954,2916.67,ASHFORD BOROUGH COUNCIL,                         ,HOUSING SERVICES,Fees And Services,Housing
Swale Borough Council,29UM,18/05/2016,1141033,3500.00,ASHFORD BOROUGH COUNCIL,                         ,HOUSING SERVICES,Fees And Services,Housing
Swale Borough Council,29UM,18/05/2016,1141034,-3500.00,ASHFORD BOROUGH COUNCIL,                         ,HOUSING SERVICES,Fees And Services,Housing
Swale Borough Council,29UM,18/05/2016,1141505,620.00,ASHFORD CLEANING CONTRACTORS LTD,                         ,PROPERTY SERVICES,Service Contracts,Corporate & Democratic Core
Swale Borough Council,29UM,18/05/2016,1141275,364.00,BIFFA MUNICIPAL SERVICES LTD,4321212                  ,COMMUNITY SAFETY,Trade Waste-Refuse,Cultural and Related Services
Swale Borough Council,29UM,18/05/2016,1141164,107451.36,BLENWOOD LTD,4383277                  ,LEISURE & OPEN SPACES,Grounds Maint Suspense,Cultural and Related Services
Swale Borough Council,29UM,18/05/2016,1141166,4416.47,BLENWOOD LTD,4383277                  ,LEISURE & OPEN SPACES,Grounds Maint Suspense,Cultural and Related Services
Swale Borough Council,29UM,18/05/2016,1141331,625.46,BT REDCARE,1800000                  ,COMMUNITY SAFETY,CCTV Line Rental,Environmental and Regulatory Services
Swale Borough Council,29UM,18/05/2016,1141433,500.00,CALLCREDIT LIMITED,3961870                  ,REVENUE SERVICES,Grants & Subscriptions,Central Services to the Public
Swale Borough Council,29UM,18/05/2016,1141432,350.00,CAPITA BUSINESS SERVICES LTD,                         ,REVENUE SERVICES,Fees And Services,Housing
Swale Borough Council,29UM,18/05/2016,1141242,3333.33,CHALKWELL COACH HIRE LTD,2520842                  ,PLANNING SERVICES,Payments in Year,Ledger/Suspense Codes
Swale Borough Council,29UM,18/05/2016,1141245,2324.14,CHALKWELL COACH HIRE LTD,2520842                  ,PLANNING SERVICES,Payments in Year,Ledger/Suspense Codes
Swale Borough Council,29UM,18/05/2016,1141577,8212.21,DOLPHIN STAIRLIFTS (KENT),04181846                 ,HOUSING SERVICES,Housing Renovation Grants,Not used in this Structure
Swale Borough Council,29UM,18/05/2016,1141330,492.75,EARTH ANCHORS LTD,                         ,LEISURE & OPEN SPACES,Maintenance - Grounds,Cultural and Related Services
Swale Borough Council,29UM,18/05/2016,1136983,307.98,EDF ENERGY,2228297                  ,PROPERTY SERVICES,Electricity,Cultural and Related Services
Swale Borough Council,29UM,18/05/2016,1141351,-307.98,EDF ENERGY,2228297                  ,PROPERTY SERVICES,Electricity,Cultural and Related Services
Swale Borough Council,29UM,18/05/2016,1141173,2188.90,ELECTORAL REFORM SERVICES,2263092                  ,DEMOCRATIC & ELECTORAL SERVICES,Fees And Services,Ledger/Suspense Codes
Swale Borough Council,29UM,18/05/2016,1141187,500.00,FAVERSHAM TOWN COUNCIL,                         ,COMMUNITY SAFETY,Grants & Subscriptions,Central Services to the Public
Swale Borough Council,29UM,18/05/2016,1141576,942.00,HUBBARD & HOUGHTON CONSTRUCTION LTD,                         ,HOUSING SERVICES,Housing Renovation Grants,Not used in this Structure
Swale Borough Council,29UM,18/05/2016,1141572,552.93,J & D SYSTEMS,                         ,HOUSING SERVICES,Housing Renovation Grants,Not used in this Structure
Swale Borough Council,29UM,18/05/2016,1141573,674.64,J & D SYSTEMS,                         ,HOUSING SERVICES,Housing Renovation Grants,Not used in this Structure
Swale Borough Council,29UM,18/05/2016,1141230,300.00,J BRITCHER TREE SERVICES,                         ,COMMUNITY SAFETY,Grants & Subscriptions,Central Services to the Public
Swale Borough Council,29UM,18/05/2016,1141104,5150.00,J N CLEARANCE,                         ,CONTRACT & PROCUREMENT,"Clearance Of Waste,Fly Tipping",Environmental and Regulatory Services
Swale Borough Council,29UM,18/05/2016,1141105,5225.00,J N CLEARANCE,                         ,CONTRACT & PROCUREMENT,"Clearance Of Waste,Fly Tipping",Environmental and Regulatory Services
Swale Borough Council,29UM,18/05/2016,1141449,1145.00,KENT MESSENGER LTD,505554                   ,COMMUNICATIONS,Advertising & Promotion,Internal Trading Cost Centres
Swale Borough Council,29UM,18/05/2016,1141243,4224.00,LESSHOMELESS LIMITED,08458851                 ,HOUSING SERVICES,B & B - Landlords Payments,Housing
Swale Borough Council,29UM,18/05/2016,1141240,3115.00,MAGEES GUESTHOUSE,                         ,HOUSING SERVICES,B & B - Landlords Payments,Housing
Swale Borough Council,29UM,18/05/2016,1141179,30581.56,MAIDSTONE BOROUGH COUNCIL,                         ,CONTRACT & PROCUREMENT,Private Contractors,Environmental and Regulatory Services
Swale Borough Council,29UM,18/05/2016,1141180,13991.95,MAIDSTONE BOROUGH COUNCIL,                         ,CONTRACT & PROCUREMENT,Equipment Purchase,Environmental and Regulatory Services
Swale Borough Council,29UM,18/05/2016,1141293,1082.97,MAIDSTONE BOROUGH COUNCIL,                         ,CONTRACT & PROCUREMENT,Equipment Purchase,Environmental and Regulatory Services
Swale Borough Council,29UM,18/05/2016,1141591,1045306.00,MAIDSTONE BOROUGH COUNCIL - DT,                         ,FINANCIAL SERVICES,Tariff to Gvt,Taxation and Non-Specific Grant Income
Swale Borough Council,29UM,18/05/2016,1141280,1584.00,MATCHTECH,4426336                  ,PLANNING SERVICES,Agency/Contract Staff,Internal Trading Cost Centres
Swale Borough Council,29UM,18/05/2016,1141447,554.00,MOBILE MINI,2862423                  ,DEMOCRATIC & ELECTORAL SERVICES,Hire Of Premises,Ledger/Suspense Codes
Swale Borough Council,29UM,18/05/2016,1141329,5173.45,MPS MARKETING SERVICES LIMITED,6360656                  ,DEMOCRATIC & ELECTORAL SERVICES,Fees And Services,Ledger/Suspense Codes
Swale Borough Council,29UM,18/05/2016,1141315,4697.00,PORTAKABIN LIMITED,685303                   ,DEMOCRATIC & ELECTORAL SERVICES,Hire Of Premises,Ledger/Suspense Codes
Swale Borough Council,29UM,18/05/2016,1141568,5541.61,PRECEPT CS LIMITED,07311462                 ,HOUSING SERVICES,Housing Renovation Grants,Not used in this Structure
Swale Borough Council,29UM,18/05/2016,1141569,8437.13,PRECEPT CS LIMITED,07311462                 ,HOUSING SERVICES,Housing Renovation Grants,Not used in this Structure
Swale Borough Council,29UM,18/05/2016,1140937,417.95,REARDON PROPERTIES,                         ,HOUSING SERVICES,RDS - Landlord claim on Bond Scheme,Housing
Swale Borough Council,29UM,18/05/2016,1141146,980.75,REARDON PROPERTIES,                         ,HOUSING SERVICES,B & B - Landlords Payments,Housing
Swale Borough Council,29UM,18/05/2016,1141309,360.00,RIPPLEEFFECT,                         ,TOURISM & SPORTS DEVELOPMENT,Fees And Services,Cultural and Related Services
Swale Borough Council,29UM,18/05/2016,1141364,38855.00,ROYAL NATIONAL LIFEBOAT INSTITUTION,209603                   ,SERVICE DELIVERY,Contracts,Cultural and Related Services
Swale Borough Council,29UM,18/05/2016,1140983,-9036.92,SERCO LEISURE OPERATING LIMITED,04687478                 ,LEISURE & OPEN SPACES,Procurement Contracts Only,Cultural and Related Services
Swale Borough Council,29UM,18/05/2016,1140984,9036.92,SERCO LEISURE OPERATING LIMITED,04687478                 ,LEISURE & OPEN SPACES,Procurement Contracts Only,Cultural and Related Services
Swale Borough Council,29UM,18/05/2016,1140985,-9036.92,SERCO LEISURE OPERATING LIMITED,04687478                 ,LEISURE & OPEN SPACES,Procurement Contracts Only,Cultural and Related Services
Swale Borough Council,29UM,18/05/2016,1140986,9036.92,SERCO LEISURE OPERATING LIMITED,04687478                 ,LEISURE & OPEN SPACES,Procurement Contracts Only,Cultural and Related Services
Swale Borough Council,29UM,18/05/2016,1141298,9036.92,SERCO LEISURE OPERATING LIMITED,04687478                 ,LEISURE & OPEN SPACES,Procurement Contracts Only,Cultural and Related Services
Swale Borough Council,29UM,18/05/2016,1141523,574.50,SHAW AND SONS LTD,                         ,DEMOCRATIC & ELECTORAL SERVICES,Stationery,Ledger/Suspense Codes
Swale Borough Council,29UM,18/05/2016,1141367,550.00,SITTINGBOURNE CARNIVAL ASSOCIATION,                         ,COMMUNITY SAFETY,Grants & Subscriptions,Central Services to the Public
Swale Borough Council,29UM,18/05/2016,1141302,3066.79,SOUTHERN COMMUNICATIONS LTD,1328040                  ,ICT,Telephone,Corporate & Democratic Core
Swale Borough Council,29UM,18/05/2016,1141117,355.22,SOUTHERN WATER SERVICES LIMITED,2366670                  ,CONTRACT & PROCUREMENT,Water - Metered,Environmental and Regulatory Services
Swale Borough Council,29UM,18/05/2016,1141316,1079.12,SOUTHERN WATER SERVICES LIMITED,2366670                  ,CONTRACT & PROCUREMENT,Water - Metered,Environmental and Regulatory Services
Swale Borough Council,29UM,18/05/2016,1141317,558.48,SOUTHERN WATER SERVICES LIMITED,2366670                  ,CONTRACT & PROCUREMENT,Water - Metered,Environmental and Regulatory Services
Swale Borough Council,29UM,18/05/2016,1141232,81359.00,STAGECOACH SERVICES LTD,2818654                  ,PLANNING SERVICES,Payments in Year,Ledger/Suspense Codes
Swale Borough Council,29UM,18/05/2016,1141301,11829.38,SWALE COMMUNITY LEISURE LIMITED,31132R                   ,LEISURE & OPEN SPACES,Procurement Contracts Only,Cultural and Related Services
Swale Borough Council,29UM,18/05/2016,1141289,500.00,SYNERGY CONSTRUCTION & PROPERTY CONSULTANTS LLP,                         ,COMMUNITY SAFETY,Capitalised Fees And Charges,Not used in this Structure
Swale Borough Council,29UM,18/05/2016,1141369,1000.00,THE FRIENDS OF MILTON REGIS COURT HALL,                         ,TOURISM & SPORTS DEVELOPMENT,Grants & Subscriptions,Cultural and Related Services
Swale Borough Council,29UM,18/05/2016,1141053,1715.00,TRAFALGAR TAVERN LTD,07999329                 ,HOUSING SERVICES,B & B - Landlords Payments,Housing
Swale Borough Council,29UM,18/05/2016,1141524,210.00,UK PAPER LEISURE CLUB,                         ,DEMOCRATIC & ELECTORAL SERVICES,Hire Of Premises,Ledger/Suspense Codes
Swale Borough Council,29UM,18/05/2016,1141524,122.82,UK PAPER LEISURE CLUB,                         ,DEMOCRATIC & ELECTORAL SERVICES,Hire Of Premises,Ledger/Suspense Codes
Swale Borough Council,29UM,18/05/2016,1141177,1775.00,UPM TILHILL,3242286                  ,LEISURE & OPEN SPACES,Maintenance - Grounds Contract,Cultural and Related Services
Swale Borough Council,29UM,18/05/2016,1141177,3249.00,UPM TILHILL,3242286                  ,LEISURE & OPEN SPACES,Maintenance - Grounds Contract,Cultural and Related Services
Swale Borough Council,29UM,18/05/2016,1141462,1014.75,VENN GROUP LIMITED,                         ,MKIP LEGAL SERVICES,Agency/Contract Staff,Internal Trading Cost Centres
Swale Borough Council,29UM,18/05/2016,1141463,1146.40,VENN GROUP LIMITED,                         ,MKIP LEGAL SERVICES,Agency/Contract Staff,Internal Trading Cost Centres
Swale Borough Council,29UM,18/05/2016,1141464,1120.00,VENN GROUP LIMITED,                         ,MKIP LEGAL SERVICES,Agency/Contract Staff,Internal Trading Cost Centres
Swale Borough Council,29UM,18/05/2016,1141465,600.00,VENN GROUP LIMITED,                         ,MKIP LEGAL SERVICES,Agency/Contract Staff,Internal Trading Cost Centres
Swale Borough Council,29UM,18/05/2016,1141466,902.00,VENN GROUP LIMITED,                         ,MKIP LEGAL SERVICES,Agency/Contract Staff,Internal Trading Cost Centres
Swale Borough Council,29UM,18/05/2016,1141467,922.50,VENN GROUP LIMITED,                         ,MKIP LEGAL SERVICES,Agency/Contract Staff,Internal Trading Cost Centres
Swale Borough Council,29UM,18/05/2016,1141468,1396.40,VENN GROUP LIMITED,                         ,MKIP LEGAL SERVICES,Agency/Contract Staff,Internal Trading Cost Centres
Swale Borough Council,29UM,18/05/2016,1141469,1193.20,VENN GROUP LIMITED,                         ,MKIP LEGAL SERVICES,Agency/Contract Staff,Internal Trading Cost Centres
Swale Borough Council,29UM,18/05/2016,1141470,1400.00,VENN GROUP LIMITED,                         ,MKIP LEGAL SERVICES,Agency/Contract Staff,Internal Trading Cost Centres
Swale Borough Council,29UM,18/05/2016,1141471,1136.40,VENN GROUP LIMITED,                         ,MKIP LEGAL SERVICES,Agency/Contract Staff,Internal Trading Cost Centres
Swale Borough Council,29UM,18/05/2016,1141304,658.38,WHISTL UK LIMITED,04417047                 ,REVENUE SERVICES,Postage,Central Services to the Public
Swale Borough Council,29UM,18/05/2016,1141304,329.19,WHISTL UK LIMITED,04417047                 ,REVENUE SERVICES,Postage,Housing
Swale Borough Council,29UM,18/05/2016,1141304,381.54,WHISTL UK LIMITED,04417047                 ,PROPERTY SERVICES,Postage,Holding Codes
Swale Borough Council,29UM,18/05/2016,1141305,38.52,WHISTL UK LIMITED,04417047                 ,REVENUE SERVICES,Postage,Central Services to the Public
Swale Borough Council,29UM,18/05/2016,1141305,19.26,WHISTL UK LIMITED,04417047                 ,REVENUE SERVICES,Postage,Housing
Swale Borough Council,29UM,18/05/2016,1141305,582.08,WHISTL UK LIMITED,04417047                 ,PROPERTY SERVICES,Postage,Holding Codes
Swale Borough Council,29UM,18/05/2016,1141566,10715.40,WILLOW TREE HOME SOLUTIONS LTD,                         ,HOUSING SERVICES,Housing Renovation Grants,Not used in this Structure
Swale Borough Council,29UM,18/05/2016,1141567,683.70,WILLOW TREE HOME SOLUTIONS LTD,                         ,HOUSING SERVICES,Housing Renovation Grants,Not used in this Structure
Swale Borough Council,29UM,18/05/2016,1141570,4243.50,WILLOW TREE HOME SOLUTIONS LTD,                         ,HOUSING SERVICES,Housing Renovation Grants,Not used in this Structure
Swale Borough Council,29UM,25/05/2016,1141749,11449.35,ACORN MAINTENANCE SERVICES,3546898                  ,HOUSING SERVICES,Housing Renovation Grants,Not used in this Structure
Swale Borough Council,29UM,25/05/2016,1141750,4723.00,ACORN MAINTENANCE SERVICES,3546898                  ,HOUSING SERVICES,Housing Renovation Grants,Not used in this Structure
Swale Borough Council,29UM,25/05/2016,1141346,2385.00,BATES JPW ADVERTISING LTD,784540                   ,MKIP LEGAL SERVICES,Recruitment Adverts - Staff,Internal Trading Cost Centres
Swale Borough Council,29UM,25/05/2016,1141347,325.00,BATES JPW ADVERTISING LTD,784540                   ,MKIP LEGAL SERVICES,Recruitment Adverts - Staff,Internal Trading Cost Centres
Swale Borough Council,29UM,25/05/2016,1141623,4395.00,BATES JPW ADVERTISING LTD,784540                   ,MKIP LEGAL SERVICES,Recruitment Adverts - Staff,Internal Trading Cost Centres
Swale Borough Council,29UM,25/05/2016,1141640,650.00,BEACHFIELD SWIMMING SQUAD,                         ,COMMUNITY SAFETY,Grants & Subscriptions,Central Services to the Public
Swale Borough Council,29UM,25/05/2016,1141472,982.87,BLENWOOD LTD,4383277                  ,LEISURE & OPEN SPACES,Maintenance - Grounds Contract,Cultural and Related Services
Swale Borough Council,29UM,25/05/2016,1141662,839.72,BLENWOOD LTD,4383277                  ,LEISURE & OPEN SPACES,Forrestry/Woodland,Cultural and Related Services
Swale Borough Council,29UM,25/05/2016,1141535,342.81,BRITISH GAS TRADING LTD,                         ,COMMUNITY SAFETY,Gas,Cultural and Related Services
Swale Borough Council,29UM,25/05/2016,1141538,1645.00,BT DEVELOPMENTS,                         ,HOUSING SERVICES,B & B - Landlords Payments,Housing
Swale Borough Council,29UM,25/05/2016,1141345,950.00,CART ASSIST LIMITED,                         ,COMMISSIONING & CUSTOMER CONTACT,Performance Fund Expenditure,Ledger/Suspense Codes
Swale Borough Council,29UM,25/05/2016,1141485,2228.33,CHILDREN AND FAMILIES LTD,                         ,COMMUNITY SAFETY,Fees And Services,Planning and Development Services
Swale Borough Council,29UM,25/05/2016,1141641,435.60,CLEAR CHANNEL UK LTD,                         ,COMMUNICATIONS,Advertising & Promotion,Internal Trading Cost Centres
Swale Borough Council,29UM,25/05/2016,1141400,4245.92,COMENSURA LTD,04085767                 ,HUMAN RESOURCES,Agency/Contract Staff,Internal Trading Cost Centres
Swale Borough Council,29UM,25/05/2016,1141632,3771.19,COMENSURA LTD,04085767                 ,HUMAN RESOURCES,Agency/Contract Staff,Internal Trading Cost Centres
Swale Borough Council,29UM,25/05/2016,1141486,395.00,COVERGOLD LTD,2765148                  ,PLANNING SERVICES,Computer Equipment & Materials,Internal Trading Cost Centres
Swale Borough Council,29UM,25/05/2016,1141392,414.00,CRYSTALL BALL LTD,06668428                 ,CONTRACT & PROCUREMENT,Fees And Services,Internal Trading Cost Centres
Swale Borough Council,29UM,25/05/2016,1141393,552.00,CRYSTALL BALL LTD,06668428                 ,CONTRACT & PROCUREMENT,Fees And Services,Internal Trading Cost Centres
Swale Borough Council,29UM,25/05/2016,1141403,609.76,DHA PLANNING,2683290                  ,PLANNING SERVICES,Fees And Services,Internal Trading Cost Centres
Swale Borough Council,29UM,25/05/2016,1141404,443.12,DHA PLANNING,2683290                  ,PLANNING SERVICES,Fees And Services,Internal Trading Cost Centres
Swale Borough Council,29UM,25/05/2016,1141405,2069.71,DHA PLANNING,2683290                  ,PLANNING SERVICES,Fees And Services,Internal Trading Cost Centres
Swale Borough Council,29UM,25/05/2016,1141406,844.86,DHA PLANNING,2683290                  ,PLANNING SERVICES,Fees And Services,Internal Trading Cost Centres
Swale Borough Council,29UM,25/05/2016,1141407,453.42,DHA PLANNING,2683290                  ,PLANNING SERVICES,Fees And Services,Internal Trading Cost Centres
Swale Borough Council,29UM,25/05/2016,1141408,495.00,DHA PLANNING,2683290                  ,PLANNING SERVICES,Fees And Services,Internal Trading Cost Centres
Swale Borough Council,29UM,25/05/2016,1141555,330.00,DISTRICT COUNCILS' NETWORK,                         ,DEMOCRATIC & ELECTORAL SERVICES,Grants & Subscriptions,Corporate & Democratic Core
Swale Borough Council,29UM,25/05/2016,1141546,500.00,DOCUMENT OUTPUT SOLUTIONS UK LTD,3686010                  ,REVENUE SERVICES,Fees And Services,Housing
Swale Borough Council,29UM,25/05/2016,1141423,478.20,EDF ENERGY,2228297                  ,CONTRACT & PROCUREMENT,Electricity,Environmental and Regulatory Services
Swale Borough Council,29UM,25/05/2016,1141679,-560.87,EDF ENERGY,2228297                  ,LEISURE & OPEN SPACES,Electricity,Cultural and Related Services
Swale Borough Council,29UM,25/05/2016,1141683,274.63,EDF ENERGY,2228297                  ,LEISURE & OPEN SPACES,Electricity,Cultural and Related Services
Swale Borough Council,29UM,25/05/2016,1141529,4040.00,EXACOM SYSTEMS LTD,07356515                 ,PLANNING SERVICES,Computer Equipment & Materials,Internal Trading Cost Centres
Swale Borough Council,29UM,25/05/2016,1141332,1100.00,GHYLLSIDE LTD,644979                   ,DEMOCRATIC & ELECTORAL SERVICES,Hire Of Premises,Ledger/Suspense Codes
Swale Borough Council,29UM,25/05/2016,1141743,7000.00,GREENS GROUNDWORK,                         ,HOUSING SERVICES,Housing Renovation Grants,Not used in this Structure
Swale Borough Council,29UM,25/05/2016,1141626,600.00,HUBBARD & HOUGHTON CONSTRUCTION LTD,                         ,HOUSING SERVICES,Staying Put small repairs (contractors),Housing
Swale Borough Council,29UM,25/05/2016,1141686,324.00,HUBBARD & HOUGHTON CONSTRUCTION LTD,                         ,HOUSING SERVICES,Staying Put small repairs (contractors),Housing
Swale Borough Council,29UM,25/05/2016,1141746,5035.50,HUBBARD & HOUGHTON CONSTRUCTION LTD,                         ,HOUSING SERVICES,Housing Renovation Grants,Not used in this Structure
Swale Borough Council,29UM,25/05/2016,1141747,5589.00,HUBBARD & HOUGHTON CONSTRUCTION LTD,                         ,HOUSING SERVICES,Housing Renovation Grants,Not used in this Structure
Swale Borough Council,29UM,25/05/2016,1141550,10920.00,KINGDOM SECURITY LIMITED,                         ,ENVIRONMENTAL RESPONSE TEAM,Fees And Services,Planning and Development Services
Swale Borough Council,29UM,25/05/2016,1141359,8955.00,"KNIGHT, KAVANAGH & PAGE LTD",9145032                  ,LEISURE & OPEN SPACES,Consultancy/Specialist Advice,Cultural and Related Services
Swale Borough Council,29UM,25/05/2016,1141431,1900.00,LA DIRECTORIES LIMITED,                         ,REVENUE SERVICES,Grants & Subscriptions,Housing
Swale Borough Council,29UM,25/05/2016,1141522,500.00,LAVAT CONSULTING LTD.,4810070                  ,FINANCIAL SERVICES,Consultancy/Specialist Advice,Internal Trading Cost Centres
Swale Borough Council,29UM,25/05/2016,1141389,300.00,LEMAR LIMITED,04350292                 ,LEISURE & OPEN SPACES,Maintenance - Grounds,Cultural and Related Services
Swale Borough Council,29UM,25/05/2016,1141389,395.00,LEMAR LIMITED,04350292                 ,LEISURE & OPEN SPACES,Maintenance - Grounds,Cultural and Related Services
Swale Borough Council,29UM,25/05/2016,1141614,500.00,LEMAR LIMITED,04350292                 ,SERVICE DELIVERY,Private Contractors - CIS,Highway and Transport Services
Swale Borough Council,29UM,25/05/2016,1141614,550.00,LEMAR LIMITED,04350292                 ,SERVICE DELIVERY,Private Contractors - CIS,Highway and Transport Services
Swale Borough Council,29UM,25/05/2016,1141615,200.00,LEMAR LIMITED,04350292                 ,SERVICE DELIVERY,Private Contractors - CIS,Highway and Transport Services
Swale Borough Council,29UM,25/05/2016,1141615,150.00,LEMAR LIMITED,04350292                 ,SERVICE DELIVERY,Private Contractors - CIS,Highway and Transport Services
Swale Borough Council,29UM,25/05/2016,1141051,11907.80,LIMEHOUSE SOFTWARE LTD,04372883                 ,PLANNING SERVICES,Computer Equipment & Materials,Planning and Development Services
Swale Borough Council,29UM,25/05/2016,1141702,990.00,LOCAL GOVERNMENT ASSOCIATION,                         ,DEMOCRATIC & ELECTORAL SERVICES,Conference,Corporate & Democratic Core
Swale Borough Council,29UM,25/05/2016,1141618,567.00,M.T.S. CLEANSING SERVICES LTD,2045340                  ,LEISURE & OPEN SPACES,Clearing Cesspools,Cultural and Related Services
Swale Borough Council,29UM,25/05/2016,1141333,1776.00,MACDONALD & COMPANY FREELANCE LTD,3882135                  ,PLANNING SERVICES,Agency/Contract Staff,Internal Trading Cost Centres
Swale Borough Council,29UM,25/05/2016,1141534,1296.00,MACDONALD & COMPANY FREELANCE LTD,3882135                  ,PLANNING SERVICES,Agency/Contract Staff,Internal Trading Cost Centres
Swale Borough Council,29UM,25/05/2016,1141388,2570.00,MAGEES GUESTHOUSE,                         ,HOUSING SERVICES,B & B - Landlords Payments,Housing
Swale Borough Council,29UM,25/05/2016,1141556,2150.00,MAGEES GUESTHOUSE,                         ,HOUSING SERVICES,B & B - Landlords Payments,Housing
Swale Borough Council,29UM,25/05/2016,1141371,973.69,MAIDSTONE BOROUGH COUNCIL,                         ,CAR PARKS,Maintenance - Grounds,Highway and Transport Services
Swale Borough Council,29UM,25/05/2016,1139989,1128.00,MARINE MANAGEMENT ORGANISATION,                         ,ECONOMIC DEVELOPMENT,Regeneration Fund Expenditure,Ledger/Suspense Codes
Swale Borough Council,29UM,25/05/2016,1141511,1584.00,MATCHTECH,4426336                  ,PLANNING SERVICES,Agency/Contract Staff,Internal Trading Cost Centres
Swale Borough Council,29UM,25/05/2016,1141610,818.03,MAYLOW CONSTRUCTION LTD,                         ,LEISURE & OPEN SPACES,Equipment Maintenance,Cultural and Related Services
Swale Borough Council,29UM,25/05/2016,1141611,2209.00,MAYLOW CONSTRUCTION LTD,                         ,LEISURE & OPEN SPACES,Equipment Maintenance,Cultural and Related Services
Swale Borough Council,29UM,25/05/2016,1141651,947.00,MAYLOW CONSTRUCTION LTD,                         ,LEISURE & OPEN SPACES,Maintenance - Grounds,Environmental and Regulatory Services
Swale Borough Council,29UM,25/05/2016,1140964,2163.20,MEDWAY ACCOMMODATION LIMITED,                         ,HOUSING SERVICES,B & B - Landlords Payments,Housing
Swale Borough Council,29UM,25/05/2016,1140964,450.67,MEDWAY ACCOMMODATION LIMITED,                         ,HOUSING SERVICES,B & B - Landlords Payments,Housing
Swale Borough Council,29UM,25/05/2016,1141120,2216.00,MEDWAY ACCOMMODATION LIMITED,                         ,HOUSING SERVICES,B & B - Landlords Payments,Housing
Swale Borough Council,29UM,25/05/2016,1141120,461.67,MEDWAY ACCOMMODATION LIMITED,                         ,HOUSING SERVICES,B & B - Landlords Payments,Housing
Swale Borough Council,29UM,25/05/2016,1141328,2722.40,MEDWAY ACCOMMODATION LIMITED,                         ,HOUSING SERVICES,B & B - Landlords Payments,Housing
Swale Borough Council,29UM,25/05/2016,1141328,567.17,MEDWAY ACCOMMODATION LIMITED,                         ,HOUSING SERVICES,B & B - Landlords Payments,Housing
Swale Borough Council,29UM,25/05/2016,1141532,2451.26,MEMS POWER GENERATION LTD,2028435                  ,DEMOCRATIC & ELECTORAL SERVICES,Hire Of Premises,Ledger/Suspense Codes
Swale Borough Council,29UM,25/05/2016,1141706,1067.50,METRIC GROUP LTD,2560839                  ,CAR PARKS,Maintenance - Grounds,Highway and Transport Services
Swale Borough Council,29UM,25/05/2016,1141719,405.00,REDACTED PERSONAL INFORMATION,                         ,FINANCIAL SERVICES,Awaiting Allocation,Ledger/Suspense Codes
Swale Borough Council,29UM,25/05/2016,1141456,350.00,MR J W GATES,                         ,SERVICE DELIVERY,Maintenance - Grounds,Cultural and Related Services
Swale Borough Council,29UM,25/05/2016,1141502,255.00,MR J W GATES,                         ,LEISURE & OPEN SPACES,Maintenance - Grounds,Cultural and Related Services
Swale Borough Council,29UM,25/05/2016,1141502,275.00,MR J W GATES,                         ,LEISURE & OPEN SPACES,Maintenance - Grounds,Cultural and Related Services
Swale Borough Council,29UM,25/05/2016,1141551,225.00,MR J W GATES,                         ,SERVICE DELIVERY,Maintenance - Grounds,Cultural and Related Services
Swale Borough Council,29UM,25/05/2016,1141551,29.00,MR J W GATES,                         ,SERVICE DELIVERY,Maintenance - Grounds,Cultural and Related Services
Swale Borough Council,29UM,25/05/2016,1141552,1250.00,MR J W GATES,                         ,LEISURE & OPEN SPACES,Maintenance - Grounds,Cultural and Related Services
Swale Borough Council,29UM,25/05/2016,1141552,175.00,MR J W GATES,                         ,LEISURE & OPEN SPACES,Maintenance - Grounds,Cultural and Related Services
Swale Borough Council,29UM,25/05/2016,1141711,400.00,MR J W GATES,                         ,SERVICE DELIVERY,Maintenance - Grounds,Cultural and Related Services
Swale Borough Council,29UM,25/05/2016,1141711,22.75,MR J W GATES,                         ,SERVICE DELIVERY,Maintenance - Grounds,Cultural and Related Services
Swale Borough Council,29UM,25/05/2016,1141711,20.00,MR J W GATES,                         ,SERVICE DELIVERY,Maintenance - Grounds,Cultural and Related Services
Swale Borough Council,29UM,25/05/2016,1141258,1022.80,NORTH KENT ARCHITEC. CENTRE LTD,3284438                  ,PLANNING SERVICES,Fees And Services,Planning and Development Services
Swale Borough Council,29UM,25/05/2016,1141599,810.00,PINNACLE RESPONSE LTD,                         ,ENVIRONMENTAL RESPONSE TEAM,Equipment Purchase,Internal Trading Cost Centres
Swale Borough Council,29UM,25/05/2016,1141744,3317.35,PRECEPT CS LIMITED,07311462                 ,HOUSING SERVICES,Housing Renovation Grants,Not used in this Structure
Swale Borough Council,29UM,25/05/2016,1141340,675.00,REARDON PROPERTIES,                         ,HOUSING SERVICES,B & B - Landlords Payments,Housing
Swale Borough Council,29UM,25/05/2016,1141342,875.00,REARDON PROPERTIES,                         ,HOUSING SERVICES,B & B - Landlords Payments,Housing
Swale Borough Council,29UM,25/05/2016,1141343,350.00,REARDON PROPERTIES,                         ,HOUSING SERVICES,B & B - Landlords Payments,Housing
Swale Borough Council,29UM,25/05/2016,1141035,675.00,RICS BUSINESS SERVICES LTD,                         ,PLANNING SERVICES,"Books, Journals & e - resources",Internal Trading Cost Centres
Swale Borough Council,29UM,25/05/2016,1141693,550.00,SHARNWOOD DEVELOPMENTS LTD,                         ,HOUSING SERVICES,RDS - Landlord claim on Bond Scheme,Housing
Swale Borough Council,29UM,25/05/2016,1141637,3968.57,SHARP BUSINESS SYSTEMS UK,2136901                  ,ICT,Equipment Rental,Holding Codes
Swale Borough Council,29UM,25/05/2016,1141639,300.00,SHEPPEY WRITERS GROUP,                         ,COMMUNITY SAFETY,Grants & Subscriptions,Central Services to the Public
Swale Borough Council,29UM,25/05/2016,1141748,10726.20,SOUTH EAST BUILDING CO LTD,1786838                  ,HOUSING SERVICES,Housing Renovation Grants,Not used in this Structure
Swale Borough Council,29UM,25/05/2016,1141596,400.00,STOP THE TRAFFIK,                         ,COMMUNITY SAFETY,Fees And Services,Planning and Development Services
Swale Borough Council,29UM,25/05/2016,1141596,14.20,STOP THE TRAFFIK,                         ,COMMUNITY SAFETY,Fees And Services,Planning and Development Services
Swale Borough Council,29UM,25/05/2016,1141596,400.00,STOP THE TRAFFIK,                         ,COMMUNITY SAFETY,Fees And Services,Environmental and Regulatory Services
Swale Borough Council,29UM,25/05/2016,1141596,14.20,STOP THE TRAFFIK,                         ,COMMUNITY SAFETY,Fees And Services,Environmental and Regulatory Services
Swale Borough Council,29UM,25/05/2016,1141564,1095.00,SURVEY DESIGN SERVICES & ASSOCIATES LTD,                         ,COMMUNITY SAFETY,Capitalised Fees And Charges,Not used in this Structure
Swale Borough Council,29UM,25/05/2016,1141625,240.00,SWALE COMMUNITY LEISURE LIMITED,31132R                   ,DEMOCRATIC & ELECTORAL SERVICES,Hire Of Premises,Ledger/Suspense Codes
Swale Borough Council,29UM,25/05/2016,1141625,2779.25,SWALE COMMUNITY LEISURE LIMITED,31132R                   ,DEMOCRATIC & ELECTORAL SERVICES,Hire Of Premises,Ledger/Suspense Codes
Swale Borough Council,29UM,25/05/2016,1141553,2550.00,TAYLOR BROTHERS LTD,                         ,SERVICE DELIVERY,Buildings Maintenance,Cultural and Related Services
Swale Borough Council,29UM,25/05/2016,1141604,480.00,TEDDSONS & SONS LTD,08945129                 ,LEISURE & OPEN SPACES,Maintenance - Grounds,Cultural and Related Services
Swale Borough Council,29UM,25/05/2016,1141604,28.00,TEDDSONS & SONS LTD,08945129                 ,LEISURE & OPEN SPACES,Maintenance - Grounds,Cultural and Related Services
Swale Borough Council,29UM,25/05/2016,1141671,180.00,TEDDSONS & SONS LTD,08945129                 ,LEISURE & OPEN SPACES,Maintenance - Grounds,Cultural and Related Services
Swale Borough Council,29UM,25/05/2016,1141671,122.20,TEDDSONS & SONS LTD,08945129                 ,LEISURE & OPEN SPACES,Maintenance - Grounds,Cultural and Related Services
Swale Borough Council,29UM,25/05/2016,1141672,760.00,TEDDSONS & SONS LTD,08945129                 ,LEISURE & OPEN SPACES,Play Equipment Maintenance - CIS,Cultural and Related Services
Swale Borough Council,29UM,25/05/2016,1141672,338.29,TEDDSONS & SONS LTD,08945129                 ,LEISURE & OPEN SPACES,Play Equipment Maintenance - CIS,Cultural and Related Services
Swale Borough Council,29UM,25/05/2016,1141673,280.00,TEDDSONS & SONS LTD,08945129                 ,LEISURE & OPEN SPACES,Maintenance - Grounds,Cultural and Related Services
Swale Borough Council,29UM,25/05/2016,1141673,80.60,TEDDSONS & SONS LTD,08945129                 ,LEISURE & OPEN SPACES,Maintenance - Grounds,Cultural and Related Services
Swale Borough Council,29UM,25/05/2016,1141674,960.00,TEDDSONS & SONS LTD,08945129                 ,LEISURE & OPEN SPACES,Maintenance - Grounds,Cultural and Related Services
Swale Borough Council,29UM,25/05/2016,1141674,227.50,TEDDSONS & SONS LTD,08945129                 ,LEISURE & OPEN SPACES,Maintenance - Grounds,Cultural and Related Services
Swale Borough Council,29UM,25/05/2016,1141661,40000.00,THE ALEXANDER CENTRE TRUST LIMITED,07281634                 ,COMMUNITY SAFETY,Grants & Subscriptions,Cultural and Related Services
Swale Borough Council,29UM,25/05/2016,1141644,3600.00,THE FAVERSHAM SOCIETY,250945                   ,TOURISM & SPORTS DEVELOPMENT,Grants & Subscriptions,Cultural and Related Services
Swale Borough Council,29UM,25/05/2016,1139380,310.00,THOMSON REUTERS,1679046                  ,MKIP LEGAL SERVICES,"Books, Journals & e - resources",Internal Trading Cost Centres
Swale Borough Council,29UM,25/05/2016,1141454,349.00,THREE TOWNS OFFICE EQUIPMENT LTD,                         ,PLANNING SERVICES,Equipment Purchase,Planning and Development Services
Swale Borough Council,29UM,25/05/2016,1141336,1715.00,TRAFALGAR TAVERN LTD,07999329                 ,HOUSING SERVICES,B & B - Landlords Payments,Housing
Swale Borough Council,29UM,25/05/2016,1141337,1595.00,TRAFALGAR TAVERN LTD,07999329                 ,HOUSING SERVICES,B & B - Landlords Payments,Housing
Swale Borough Council,29UM,25/05/2016,1141539,1775.00,TRAFALGAR TAVERN LTD,07999329                 ,HOUSING SERVICES,B & B - Landlords Payments,Housing
Swale Borough Council,29UM,25/05/2016,1141697,1715.00,TRAFALGAR TAVERN LTD,07999329                 ,HOUSING SERVICES,B & B - Landlords Payments,Housing
Swale Borough Council,29UM,25/05/2016,1141473,3137.25,TUNBRIDGE WELLS BOROUGH COUNCIL,                         ,MKIP LEGAL SERVICES,Agency/Contract Staff,Internal Trading Cost Centres
Swale Borough Council,29UM,25/05/2016,1141645,645.75,VENN GROUP LIMITED,                         ,MKIP LEGAL SERVICES,Agency/Contract Staff,Internal Trading Cost Centres
Swale Borough Council,29UM,25/05/2016,1141646,891.75,VENN GROUP LIMITED,                         ,MKIP LEGAL SERVICES,Agency/Contract Staff,Internal Trading Cost Centres
Swale Borough Council,29UM,25/05/2016,1141647,1209.50,VENN GROUP LIMITED,                         ,MKIP LEGAL SERVICES,Agency/Contract Staff,Internal Trading Cost Centres
Swale Borough Council,29UM,25/05/2016,1141648,1200.00,VENN GROUP LIMITED,                         ,MKIP LEGAL SERVICES,Agency/Contract Staff,Internal Trading Cost Centres
Swale Borough Council,29UM,25/05/2016,1141649,1199.60,VENN GROUP LIMITED,                         ,MKIP LEGAL SERVICES,Agency/Contract Staff,Internal Trading Cost Centres
Swale Borough Council,29UM,25/05/2016,1141622,1100.00,VISIT KENT,                         ,TOURISM & SPORTS DEVELOPMENT,Fees And Services,Cultural and Related Services
Swale Borough Council,29UM,25/05/2016,1141363,675.00,VP PROPERTY DEVELOPMENT LTD,                         ,HOUSING SERVICES,B & B - Landlords Payments,Housing
Swale Borough Council,29UM,25/05/2016,1141542,300.00,WEALD WOODSCAPES LTD,8028446                  ,LEISURE & OPEN SPACES,Maintenance - Grounds,Cultural and Related Services
Swale Borough Council,29UM,25/05/2016,1141483,609.69,WHISTL UK LIMITED,04417047                 ,REVENUE SERVICES,Postage,Central Services to the Public
Swale Borough Council,29UM,25/05/2016,1141483,304.84,WHISTL UK LIMITED,04417047                 ,REVENUE SERVICES,Postage,Housing
Swale Borough Council,29UM,25/05/2016,1141483,296.25,WHISTL UK LIMITED,04417047                 ,PROPERTY SERVICES,Postage,Holding Codes
Swale Borough Council,29UM,25/05/2016,1141339,300.00,WILLOW TREE HOME SOLUTIONS LTD,                         ,HOUSING SERVICES,Staying Put small repairs (contractors),Housing
Swale Borough Council,29UM,25/05/2016,1141384,947.00,WILLOW TREE HOME SOLUTIONS LTD,                         ,HOUSING SERVICES,Staying Put small repairs (contractors),Housing
Swale Borough Council,29UM,25/05/2016,1141429,300.00,WILLOW TREE HOME SOLUTIONS LTD,                         ,HOUSING SERVICES,Staying Put small repairs (contractors),Housing
Swale Borough Council,29UM,25/05/2016,1141445,395.00,WILLOW TREE HOME SOLUTIONS LTD,                         ,HOUSING SERVICES,Staying Put small repairs (contractors),Housing
Swale Borough Council,29UM,25/05/2016,1141655,495.00,WILLOW TREE HOME SOLUTIONS LTD,                         ,HOUSING SERVICES,Staying Put small repairs (contractors),Housing
Swale Borough Council,29UM,25/05/2016,1141656,480.00,WILLOW TREE HOME SOLUTIONS LTD,                         ,HOUSING SERVICES,Staying Put small repairs (contractors),Housing
Swale Borough Council,29UM,25/05/2016,1141656,420.00,WILLOW TREE HOME SOLUTIONS LTD,                         ,HOUSING SERVICES,Staying Put small repairs (contractors),Housing
Swale Borough Council,29UM,25/05/2016,1141745,4935.60,WILLOW TREE HOME SOLUTIONS LTD,                         ,HOUSING SERVICES,Housing Renovation Grants,Not used in this Structure
Swale Borough Council,29UM,26/05/2016,1141790,2985.46,CO-OP BANK PLC - (DT),                         ,REVENUE SERVICES,Bank Charges Pay Point,Central Services to the Public
Swale Borough Council,29UM,26/05/2016,1141790,43.55,CO-OP BANK PLC - (DT),                         ,REVENUE SERVICES,Bank Charges Pay Point,Central Services to the Public
Swale Borough Council,29UM,26/05/2016,1141790,62.41,CO-OP BANK PLC - (DT),                         ,REVENUE SERVICES,Bank Charges Pay Point,Housing
Swale Borough Council,29UM,26/05/2016,1141790,9.87,CO-OP BANK PLC - (DT),                         ,EXCHEQUER,Bank Charges Pay Point,Internal Trading Cost Centres
Swale Borough Council,29UM,26/05/2016,1141790,42.65,CO-OP BANK PLC - (DT),                         ,EXCHEQUER,Bank Charges Pay Point,Internal Trading Cost Centres
Swale Borough Council,29UM,26/05/2016,1141790,60.00,CO-OP BANK PLC - (DT),                         ,EXCHEQUER,Bank Charges Pay Point,Internal Trading Cost Centres
Swale Borough Council,29UM,26/05/2016,1141531,1445.77,LLOYDS BANK - (DT),                         ,FINANCIAL SERVICES,Bank Charges,Corporate & Democratic Core
Swale Borough Council,29UM,26/05/2016,1141794,1045308.00,MAIDSTONE BOROUGH COUNCIL - DT,                         ,FINANCIAL SERVICES,Tariff to Gvt,Taxation and Non-Specific Grant Income
Swale Borough Council,29UM,26/05/2016,1141822,42.22,LTR SUPPLIES LTD,,LEISURE & OPEN SPACES,Maintenance - Grounds,Cultural and Related Services
Swale Borough Council,29UM,26/05/2016,1141822,47.76,LTR SUPPLIES LTD,,LEISURE & OPEN SPACES,Maintenance - Grounds,Cultural and Related Services
Swale Borough Council,29UM,26/05/2016,1141824,-35.78,THIRSTY CUPS,,PROPERTY SERVICES,Equipment Purchase,Corporate & Democratic Core
Swale Borough Council,29UM,26/05/2016,1141824,99.00,IRONMONGERY DIRECT,,PROPERTY SERVICES,Equipment Purchase,Corporate & Democratic Core
Swale Borough Council,29UM,26/05/2016,1141824,43.49,TRADEFRAMES,,COMMUNITY SAFETY,Equipment Purchase,Cultural and Related Services
Swale Borough Council,29UM,26/05/2016,1141825,68.02,ALDI,,DEMOCRATIC & ELECTORAL SERVICES,Hospitality Allowance - Mayor,Corporate & Democratic Core
Swale Borough Council,29UM,26/05/2016,1141825,267.50,DVLA,                         ,DEMOCRATIC & ELECTORAL SERVICES,Repair And Maintenance,Corporate & Democratic Core
Swale Borough Council,29UM,26/05/2016,1141825,7.35,SAINSBURY'S,,DEMOCRATIC & ELECTORAL SERVICES,Hospitality Allowance - Mayor,Corporate & Democratic Core
Swale Borough Council,29UM,26/05/2016,1141825,25.00,FLOWERS BY BEATRICE,,DEMOCRATIC & ELECTORAL SERVICES,Hospitality Allowance - Mayor,Corporate & Democratic Core
Swale Borough Council,29UM,26/05/2016,1141827,149.95,LOCAL INFORMATION UNIT,                         ,DEMOCRATIC & ELECTORAL SERVICES,Conference,Corporate & Democratic Core
Swale Borough Council,29UM,26/05/2016,1141827,504.98,UTTINGS.CO.UK,                         ,LEISURE & OPEN SPACES,Equipment Purchase,Internal Trading Cost Centres
Swale Borough Council,29UM,26/05/2016,1141827,386.00,BROADBANDBUYER.CO.UK,                         ,ICT,Computer Equipment & Materials,Internal Trading Cost Centres
Swale Borough Council,29UM,26/05/2016,1141827,14.84,VIKINGDIRECT.COM,                         ,LEISURE & OPEN SPACES,Swale In Bloom,Cultural and Related Services
Swale Borough Council,29UM,26/05/2016,1141828,52.04,THOMSON REUTERS,,CONTRACT & PROCUREMENT,"Books, Journals & e - resources",Internal Trading Cost Centres
Swale Borough Council,29UM,26/05/2016,1141828,180.00,HALFORDS,,CONTRACT & PROCUREMENT,Equipment Maintenance,Internal Trading Cost Centres
Swale Borough Council,29UM,26/05/2016,1141829,66.64,FIRE PROTECTION ONLINE,,HOUSING SERVICES,Capitalised Fees And Charges,Not used in this Structure
Swale Borough Council,29UM,26/05/2016,1141830,75.00,POSILLIPO,                         ,CHIEF EXECUTIVE,Prizes/Awards,Corporate & Democratic Core
Swale Borough Council,29UM,26/05/2016,1141830,61.66,TRAINLINE,                         ,POLICY,Travel Warrants (Staff Travel),Corporate & Democratic Core
Swale Borough Council,29UM,26/05/2016,1141830,205.00,HAYMARKET PUBLISHING,                         ,CHIEF EXECUTIVE,Fees And Services,Corporate & Democratic Core
Swale Borough Council,29UM,26/05/2016,1141830,-60.00,KEEP BRITAIN TIDY,                         ,ENVIRONMENTAL RESPONSE TEAM,Payroll - Protective Clothing,Internal Trading Cost Centres
Swale Borough Council,29UM,26/05/2016,1141831,1437.00,HMCTS,                         ,REVENUE SERVICES,Fees And Services,Central Services to the Public
Swale Borough Council,29UM,26/05/2016,1141832,42.94,WILKO SITTINGBOURNE,,HOUSING SERVICES,Staying Put - Materials,Housing
Swale Borough Council,29UM,26/05/2016,1141832,19.99,ARGOS,,HOUSING SERVICES,Staying Put - Materials,Housing
Swale Borough Council,29UM,26/05/2016,1141832,41.11,WICKES,,HOUSING SERVICES,Staying Put - Materials,Housing
Swale Borough Council,29UM,26/05/2016,1141832,56.99,HOMEBASE,,HOUSING SERVICES,Staying Put - Materials,Housing
Swale Borough Council,29UM,26/05/2016,1141832,42.51,BAPCHILD SERVICE STATION,,HOUSING SERVICES,Fuel For Contract Vehicles,Housing
Swale Borough Council,29UM,26/05/2016,1141833,174.50,ILEX.ORG.UK,,MKIP LEGAL SERVICES,Training - Courses,Internal Trading Cost Centres
Swale Borough Council,29UM,26/05/2016,1141833,115.69,JCT LTD,                         ,MKIP LEGAL SERVICES,"Books, Journals & e - resources",Internal Trading Cost Centres
Swale Borough Council,29UM,26/05/2016,1141833,32.99,SPRINGBANK FLORIST,                         ,MKIP LEGAL SERVICES,Fees And Services,Internal Trading Cost Centres
Swale Borough Council,29UM,26/05/2016,1141833,5.20,PAYBYPHONE PARKING,                         ,MKIP LEGAL SERVICES,Payroll - Car Park Fees,Internal Trading Cost Centres
Swale Borough Council,29UM,26/05/2016,1141833,23.52,AMAZON,                         ,MKIP LEGAL SERVICES,"Books, Journals & e - resources",Internal Trading Cost Centres
Swale Borough Council,29UM,26/05/2016,1141833,5.89,PAYBYPHONE PARKING,                         ,MKIP LEGAL SERVICES,Payroll - Car Park Fees,Internal Trading Cost Centres
Swale Borough Council,29UM,27/05/2016,1141834,33.94,SITTINGBOURNE SHOES,,CONTRACT & PROCUREMENT,Equipment Purchase,Environmental and Regulatory Services
Swale Borough Council,29UM,28/05/2016,1141834,6.84,CITY PLUMBING SUPPLIES,,CONTRACT & PROCUREMENT,Non-Planned Building Maintenance,Environmental and Regulatory Services
Swale Borough Council,29UM,29/05/2016,1141834,15.79,JC LOCK & SAFE,,CONTRACT & PROCUREMENT,Non-Planned Building Maintenance,Environmental and Regulatory Services
Swale Borough Council,29UM,26/05/2016,1141791,5026.55,WORLDPAY (DT),07316500                 ,REVENUE SERVICES,Commission Paid,Central Services to the Public
Swale Borough Council,29UM,26/05/2016,1141791,241.10,WORLDPAY (DT),07316500                 ,REVENUE SERVICES,Commission Paid,Central Services to the Public
Swale Borough Council,29UM,26/05/2016,1141791,33.22,WORLDPAY (DT),07316500                 ,REVENUE SERVICES,Commission Paid,Housing
Swale Borough Council,29UM,26/05/2016,1141791,67.14,WORLDPAY (DT),07316500                 ,EXCHEQUER,Commission Paid,Internal Trading Cost Centres
Swale Borough Council,29UM,26/05/2016,1141791,900.76,WORLDPAY (DT),07316500                 ,EXCHEQUER,Commission Paid,Internal Trading Cost Centres
Swale Borough Council,29UM,26/05/2016,1141791,414.64,WORLDPAY (DT),07316500                 ,EXCHEQUER,Commission Paid,Internal Trading Cost Centres
Swale Borough Council,29UM,26/05/2016,1141791,9.99,WORLDPAY (DT),07316500                 ,ICT,Fees And Services,Internal Trading Cost Centres
Swale Borough Council,29UM,26/05/2016,1141718,-405.00,REDACTED PERSONAL INFORMATION,                         ,FINANCIAL SERVICES,Awaiting Allocation,Ledger/Suspense Codes
